Workbook

Sheet Main
F2: CQG iShares Core S&P U.S. Growth ETF Performance | AB2: =RTD("cqg.rtd", ,"SystemInfo", "Linetime") -> 45736.30954
B5: Exchange Traded Funds Performance | S5: Top 15 Performing Companies
B6: Symbol | C6: Description | H6: Last | I6: NC | J6: %NC | K6: NC/ATR | L6: Open | M6: High | N6: Low | O6: Volume | Q6: Ratio
B7: IUSG | C7: =IFERROR(RTD("cqg.rtd", ,"ContractData",B7, "LongDescription",, "T"),"") -> iShares Core U.S. Growth ETF | H7: =IFERROR(RTD("cqg.rtd", ,"ContractData",B7, "LastTradeToday",, "T"),"") ->  | I7: =IFERROR(RTD("cqg.rtd", ,"ContractData",B7, "NetLastTradeToday",, "T"),"") ->  | J7: =IFERROR(RTD("cqg.rtd", ,"ContractData",B7, "PerCentNetLastTrade",, "T")/100,"") ->  | K7: =IFERROR(I7/RTD("cqg.rtd",,"StudyData",B7, "ATR", "MaType=Sim,Period=10", "ATR","D","-1","ALL",,,"FALSE","T")/100,"") ->  | L7: =IFERROR(RTD("cqg.rtd", ,"ContractData",B7, "OPen",, "T"),"") ->  | M7: =IFERROR(RTD("cqg.rtd", ,"ContractData", B7, "HIgh",, "T"),"") ->  | N7: =IFERROR(RTD("cqg.rtd", ,"ContractData",B7, "LOw",, "T"),"") ->  | O7: =IFERROR(RTD("cqg.rtd", ,"ContractData",B7, "T_CVol",, "T"),"") -> 28 | Q7: =IFERROR(O7/RTD("cqg.rtd",,"StudyData",B7, "MA", "InputChoice=Vol,MAType=Sim,Period=21", "MA","D","-1","all",,,,"T"),"") -> 3.952870756e-05
B8: SPY | C8: =IFERROR(RTD("cqg.rtd", ,"ContractData",B8, "LongDescription",, "T"),"") -> SPDR S&P 500 | H8: =IFERROR(RTD("cqg.rtd", ,"ContractData",B8, "LastTradeToday",, "T"),"") ->  | I8: =IFERROR(RTD("cqg.rtd", ,"ContractData",B8, "NetLastTradeToday",, "T"),"") ->  | J8: =IFERROR(RTD("cqg.rtd", ,"ContractData",B8, "PerCentNetLastTrade",, "T")/100,"") ->  | K8: =IFERROR(I8/RTD("cqg.rtd",,"StudyData",B8, "ATR", "MaType=Sim,Period=10", "ATR","D","-1","ALL",,,"FALSE","T")/100,"") ->  | L8: =IFERROR(RTD("cqg.rtd", ,"ContractData",B8, "OPen",, "T"),"") ->  | M8: =IFERROR(RTD("cqg.rtd", ,"ContractData", B8, "HIgh",, "T"),"") ->  | N8: =IFERROR(RTD("cqg.rtd", ,"ContractData",B8, "LOw",, "T"),"") ->  | O8: =IFERROR(RTD("cqg.rtd", ,"ContractData",B8, "T_CVol",, "T"),"") -> 1017881 | Q8: =IFERROR(O8/RTD("cqg.rtd",,"StudyData",B8, "MA", "InputChoice=Vol,MAType=Sim,Period=21", "MA","D","-1","all",,,,"T"),"") -> 0.01473604009
B9: XLF | C9: =IFERROR(RTD("cqg.rtd", ,"ContractData",B9, "LongDescription",, "T"),"") -> Financial Select Sector SPDR | H9: =IFERROR(RTD("cqg.rtd", ,"ContractData",B9, "LastTradeToday",, "T"),"") ->  | I9: =IFERROR(RTD("cqg.rtd", ,"ContractData",B9, "NetLastTradeToday",, "T"),"") ->  | J9: =IFERROR(RTD("cqg.rtd", ,"ContractData",B9, "PerCentNetLastTrade",, "T")/100,"") ->  | K9: =IFERROR(I9/RTD("cqg.rtd",,"StudyData",B9, "ATR", "MaType=Sim,Period=10", "ATR","D","-1","ALL",,,"FALSE","T")/100,"") ->  | L9: =IFERROR(RTD("cqg.rtd", ,"ContractData",B9, "OPen",, "T"),"") ->  | M9: =IFERROR(RTD("cqg.rtd", ,"ContractData", B9, "HIgh",, "T"),"") ->  | N9: =IFERROR(RTD("cqg.rtd", ,"ContractData",B9, "LOw",, "T"),"") ->  | O9: =IFERROR(RTD("cqg.rtd", ,"ContractData",B9, "T_CVol",, "T"),"") -> 149097 | Q9: =IFERROR(O9/RTD("cqg.rtd",,"StudyData",B9, "MA", "InputChoice=Vol,MAType=Sim,Period=21", "MA","D","-1","all",,,,"T"),"") -> 0.002603957857
B10: IWF | C10: =IFERROR(RTD("cqg.rtd", ,"ContractData",B10, "LongDescription",, "T"),"") -> iShares Russell 1000 Growth ETF | H10: =IFERROR(RTD("cqg.rtd", ,"ContractData",B10, "LastTradeToday",, "T"),"") ->  | I10: =IFERROR(RTD("cqg.rtd", ,"ContractData",B10, "NetLastTradeToday",, "T"),"") ->  | J10: =IFERROR(RTD("cqg.rtd", ,"ContractData",B10, "PerCentNetLastTrade",, "T")/100,"") ->  | K10: =IFERROR(I10/RTD("cqg.rtd",,"StudyData",B10, "ATR", "MaType=Sim,Period=10", "ATR","D","-1","ALL",,,"FALSE","T")/100,"") ->  | L10: =IFERROR(RTD("cqg.rtd", ,"ContractData",B10, "OPen",, "T"),"") ->  | M10: =IFERROR(RTD("cqg.rtd", ,"ContractData", B10, "HIgh",, "T"),"") ->  | N10: =IFERROR(RTD("cqg.rtd", ,"ContractData",B10, "LOw",, "T"),"") ->  | O10: =IFERROR(RTD("cqg.rtd", ,"ContractData",B10, "T_CVol",, "T"),"") -> 26 | Q10: =IFERROR(O10/RTD("cqg.rtd",,"StudyData",B10, "MA", "InputChoice=Vol,MAType=Sim,Period=21", "MA","D","-1","all",,,,"T"),"") -> 1.334392147e-05
B11: XLRE | C11: =IFERROR(RTD("cqg.rtd", ,"ContractData",B11, "LongDescription",, "T"),"") -> Real Estate Select Sector SPDR | H11: =IFERROR(RTD("cqg.rtd", ,"ContractData",B11, "LastTradeToday",, "T"),"") ->  | I11: =IFERROR(RTD("cqg.rtd", ,"ContractData",B11, "NetLastTradeToday",, "T"),"") ->  | J11: =IFERROR(RTD("cqg.rtd", ,"ContractData",B11, "PerCentNetLastTrade",, "T")/100,"") ->  | K11: =IFERROR(I11/RTD("cqg.rtd",,"StudyData",B11, "ATR", "MaType=Sim,Period=10", "ATR","D","-1","ALL",,,"FALSE","T")/100,"") ->  | L11: =IFERROR(RTD("cqg.rtd", ,"ContractData",B11, "OPen",, "T"),"") ->  | M11: =IFERROR(RTD("cqg.rtd", ,"ContractData", B11, "HIgh",, "T"),"") ->  | N11: =IFERROR(RTD("cqg.rtd", ,"ContractData",B11, "LOw",, "T"),"") ->  | O11: =IFERROR(RTD("cqg.rtd", ,"ContractData",B11, "T_CVol",, "T"),"") -> 882 | Q11: =IFERROR(O11/RTD("cqg.rtd",,"StudyData",B11, "MA", "InputChoice=Vol,MAType=Sim,Period=21", "MA","D","-1","all",,,,"T"),"") -> 0.0001475061087
B12: IWM | C12: =IFERROR(RTD("cqg.rtd", ,"ContractData",B12, "LongDescription",, "T"),"") -> iShares Russell 2000 ETF | H12: =IFERROR(RTD("cqg.rtd", ,"ContractData",B12, "LastTradeToday",, "T"),"") ->  | I12: =IFERROR(RTD("cqg.rtd", ,"ContractData",B12, "NetLastTradeToday",, "T"),"") ->  | J12: =IFERROR(RTD("cqg.rtd", ,"ContractData",B12, "PerCentNetLastTrade",, "T")/100,"") ->  | K12: =IFERROR(I12/RTD("cqg.rtd",,"StudyData",B12, "ATR", "MaType=Sim,Period=10", "ATR","D","-1","ALL",,,"FALSE","T")/100,"") ->  | L12: =IFERROR(RTD("cqg.rtd", ,"ContractData",B12, "OPen",, "T"),"") ->  | M12: =IFERROR(RTD("cqg.rtd", ,"ContractData", B12, "HIgh",, "T"),"") ->  | N12: =IFERROR(RTD("cqg.rtd", ,"ContractData",B12, "LOw",, "T"),"") ->  | O12: =IFERROR(RTD("cqg.rtd", ,"ContractData",B12, "T_CVol",, "T"),"") -> 417254 | Q12: =IFERROR(O12/RTD("cqg.rtd",,"StudyData",B12, "MA", "InputChoice=Vol,MAType=Sim,Period=21", "MA","D","-1","all",,,,"T"),"") -> 0.01223010356
B13: IWO | C13: =IFERROR(RTD("cqg.rtd", ,"ContractData",B13, "LongDescription",, "T"),"") -> iShares Russell 2000 Growth ETF | H13: =IFERROR(RTD("cqg.rtd", ,"ContractData",B13, "LastTradeToday",, "T"),"") ->  | I13: =IFERROR(RTD("cqg.rtd", ,"ContractData",B13, "NetLastTradeToday",, "T"),"") ->  | J13: =IFERROR(RTD("cqg.rtd", ,"ContractData",B13, "PerCentNetLastTrade",, "T")/100,"") ->  | K13: =IFERROR(I13/RTD("cqg.rtd",,"StudyData",B13, "ATR", "MaType=Sim,Period=10", "ATR","D","-1","ALL",,,"FALSE","T")/100,"") ->  | L13: =IFERROR(RTD("cqg.rtd", ,"ContractData",B13, "OPen",, "T"),"") ->  | M13: =IFERROR(RTD("cqg.rtd", ,"ContractData", B13, "HIgh",, "T"),"") ->  | N13: =IFERROR(RTD("cqg.rtd", ,"ContractData",B13, "LOw",, "T"),"") ->  | O13: =IFERROR(RTD("cqg.rtd", ,"ContractData",B13, "T_CVol",, "T"),"") -> 28 | Q13: =IFERROR(O13/RTD("cqg.rtd",,"StudyData",B13, "MA", "InputChoice=Vol,MAType=Sim,Period=21", "MA","D","-1","all",,,,"T"),"") -> 5.414454882e-05
B14: QQQ | C14: =IFERROR(RTD("cqg.rtd", ,"ContractData",B14, "LongDescription",, "T"),"") -> Invesco QQQ Trust Series 1 | H14: =IFERROR(RTD("cqg.rtd", ,"ContractData",B14, "LastTradeToday",, "T"),"") ->  | I14: =IFERROR(RTD("cqg.rtd", ,"ContractData",B14, "NetLastTradeToday",, "T"),"") ->  | J14: =IFERROR(RTD("cqg.rtd", ,"ContractData",B14, "PerCentNetLastTrade",, "T")/100,"") ->  | K14: =IFERROR(I14/RTD("cqg.rtd",,"StudyData",B14, "ATR", "MaType=Sim,Period=10", "ATR","D","-1","ALL",,,"FALSE","T")/100,"") ->  | L14: =IFERROR(RTD("cqg.rtd", ,"ContractData",B14, "OPen",, "T"),"") ->  | M14: =IFERROR(RTD("cqg.rtd", ,"ContractData", B14, "HIgh",, "T"),"") ->  | N14: =IFERROR(RTD("cqg.rtd", ,"ContractData",B14, "LOw",, "T"),"") ->  | O14: =IFERROR(RTD("cqg.rtd", ,"ContractData",B14, "T_CVol",, "T"),"") -> 1256642 | Q14: =IFERROR(O14/RTD("cqg.rtd",,"StudyData",B14, "MA", "InputChoice=Vol,MAType=Sim,Period=21", "MA","D","-1","all",,,,"T"),"") -> 0.02666601667
B15: XLE | C15: =IFERROR(RTD("cqg.rtd", ,"ContractData",B15, "LongDescription",, "T"),"") -> Energy Select Sector SPDR | H15: =IFERROR(RTD("cqg.rtd", ,"ContractData",B15, "LastTradeToday",, "T"),"") ->  | I15: =IFERROR(RTD("cqg.rtd", ,"ContractData",B15, "NetLastTradeToday",, "T"),"") ->  | J15: =IFERROR(RTD("cqg.rtd", ,"ContractData",B15, "PerCentNetLastTrade",, "T")/100,"") ->  | K15: =IFERROR(I15/RTD("cqg.rtd",,"StudyData",B15, "ATR", "MaType=Sim,Period=10", "ATR","D","-1","ALL",,,"FALSE","T")/100,"") ->  | L15: =IFERROR(RTD("cqg.rtd", ,"ContractData",B15, "OPen",, "T"),"") ->  | M15: =IFERROR(RTD("cqg.rtd", ,"ContractData", B15, "HIgh",, "T"),"") ->  | N15: =IFERROR(RTD("cqg.rtd", ,"ContractData",B15, "LOw",, "T"),"") ->  | O15: =IFERROR(RTD("cqg.rtd", ,"ContractData",B15, "T_CVol",, "T"),"") -> 15861 | Q15: =IFERROR(O15/RTD("cqg.rtd",,"StudyData",B15, "MA", "InputChoice=Vol,MAType=Sim,Period=21", "MA","D","-1","all",,,,"T"),"") -> 0.0009197831998
B16: USO | C16: =IFERROR(RTD("cqg.rtd", ,"ContractData",B16, "LongDescription",, "T"),"") -> United States Oil Fund | H16: =IFERROR(RTD("cqg.rtd", ,"ContractData",B16, "LastTradeToday",, "T"),"") ->  | I16: =IFERROR(RTD("cqg.rtd", ,"ContractData",B16, "NetLastTradeToday",, "T"),"") ->  | J16: =IFERROR(RTD("cqg.rtd", ,"ContractData",B16, "PerCentNetLastTrade",, "T")/100,"") ->  | K16: =IFERROR(I16/RTD("cqg.rtd",,"StudyData",B16, "ATR", "MaType=Sim,Period=10", "ATR","D","-1","ALL",,,"FALSE","T")/100,"") ->  | L16: =IFERROR(RTD("cqg.rtd", ,"ContractData",B16, "OPen",, "T"),"") ->  | M16: =IFERROR(RTD("cqg.rtd", ,"ContractData", B16, "HIgh",, "T"),"") ->  | N16: =IFERROR(RTD("cqg.rtd", ,"ContractData",B16, "LOw",, "T"),"") ->  | O16: =IFERROR(RTD("cqg.rtd", ,"ContractData",B16, "T_CVol",, "T"),"") -> 51073 | Q16: =IFERROR(O16/RTD("cqg.rtd",,"StudyData",B16, "MA", "InputChoice=Vol,MAType=Sim,Period=21", "MA","D","-1","all",,,,"T"),"") -> 0.01945839262
C17: Top 15 Description | H17: Last | I17: NC | J17: %NC | K17: NC/ATR | L17: Open | M17: High | N17: Low | O17: Volume | Q17: Ratio
A18: =TRIM(IUSG!I1) ->  | B18: News | C18: =IFERROR(RTD("cqg.rtd", ,"ContractData",A18, "LongDescription",, "T")&" ("&RIGHT(A18,LEN(A18)-5)&")","") ->  | H18: =IFERROR(RTD("cqg.rtd", ,"ContractData",A18, "LastTradeToday",, "T"),"") -> Obligatory parameter <contract>(position - 1) is not specified | I18: =IFERROR(RTD("cqg.rtd", ,"ContractData",A18, "NetLastTradeToday",, "T"),"") -> Obligatory parameter <contract>(position - 1) is not specified | J18: =IFERROR(RTD("cqg.rtd", ,"ContractData",A18, "PerCentNetLastTrade",, "T")/100,"") ->  | K18: =IFERROR(I18/RTD("cqg.rtd",,"StudyData",A18, "ATR", "MaType=Sim,Period=10", "ATR","D","-1","ALL",,,"FALSE","T")/100,"") ->  | L18: =IFERROR(RTD("cqg.rtd", ,"ContractData",A18, "OPen",, "T"),"") -> Obligatory parameter <contract>(position - 1) is not specified | M18: =IFERROR(RTD("cqg.rtd", ,"ContractData", A18, "HIgh",, "T"),"") -> Obligatory parameter <contract>(position - 1) is not specified | N18: =IFERROR(RTD("cqg.rtd", ,"ContractData",A18, "LOw",, "T"),"") -> Obligatory parameter <contract>(position - 1) is not specified | O18: =IFERROR(RTD("cqg.rtd", ,"ContractData",A18, "T_CVol",, "T"),"") -> Obligatory parameter <contract>(position - 1) is not specified | Q18: =IFERROR(O18/RTD("cqg.rtd",,"StudyData",A18, "MA", "InputChoice=Vol,MAType=Sim,Period=21", "MA","D","-1","all",,,,"T"),"") ->  | R18: =IUSG!Q1 -> 
A19: =TRIM(IUSG!I2) ->  | B19: News | C19: =IFERROR(RTD("cqg.rtd", ,"ContractData",A19, "LongDescription",, "T")&" ("&RIGHT(A19,LEN(A19)-5)&")","") ->  | H19: =IFERROR(RTD("cqg.rtd", ,"ContractData",A19, "LastTradeToday",, "T"),"") -> Obligatory parameter <contract>(position - 1) is not specified | I19: =IFERROR(RTD("cqg.rtd", ,"ContractData",A19, "NetLastTradeToday",, "T"),"") -> Obligatory parameter <contract>(position - 1) is not specified | J19: =IFERROR(RTD("cqg.rtd", ,"ContractData",A19, "PerCentNetLastTrade",, "T")/100,"") ->  | K19: =IFERROR(I19/RTD("cqg.rtd",,"StudyData",A19, "ATR", "MaType=Sim,Period=10", "ATR","D","-1","ALL",,,"FALSE","T")/100,"") ->  | L19: =IFERROR(RTD("cqg.rtd", ,"ContractData",A19, "OPen",, "T"),"") -> Obligatory parameter <contract>(position - 1) is not specified | M19: =IFERROR(RTD("cqg.rtd", ,"ContractData", A19, "HIgh",, "T"),"") -> Obligatory parameter <contract>(position - 1) is not specified | N19: =IFERROR(RTD("cqg.rtd", ,"ContractData",A19, "LOw",, "T"),"") -> Obligatory parameter <contract>(position - 1) is not specified | O19: =IFERROR(RTD("cqg.rtd", ,"ContractData",A19, "T_CVol",, "T"),"") -> Obligatory parameter <contract>(position - 1) is not specified | Q19: =IFERROR(O19/RTD("cqg.rtd",,"StudyData",A19, "MA", "InputChoice=Vol,MAType=Sim,Period=21", "MA","D","-1","all",,,,"T"),"") ->  | R19: =IUSG!Q2 -> 
A20: =TRIM(IUSG!I3) ->  | B20: News | C20: =IFERROR(RTD("cqg.rtd", ,"ContractData",A20, "LongDescription",, "T")&" ("&RIGHT(A20,LEN(A20)-5)&")","") ->  | H20: =IFERROR(RTD("cqg.rtd", ,"ContractData",A20, "LastTradeToday",, "T"),"") -> Obligatory parameter <contract>(position - 1) is not specified | I20: =IFERROR(RTD("cqg.rtd", ,"ContractData",A20, "NetLastTradeToday",, "T"),"") -> Obligatory parameter <contract>(position - 1) is not specified | J20: =IFERROR(RTD("cqg.rtd", ,"ContractData",A20, "PerCentNetLastTrade",, "T")/100,"") ->  | K20: =IFERROR(I20/RTD("cqg.rtd",,"StudyData",A20, "ATR", "MaType=Sim,Period=10", "ATR","D","-1","ALL",,,"FALSE","T")/100,"") ->  | L20: =IFERROR(RTD("cqg.rtd", ,"ContractData",A20, "OPen",, "T"),"") -> Obligatory parameter <contract>(position - 1) is not specified | M20: =IFERROR(RTD("cqg.rtd", ,"ContractData", A20, "HIgh",, "T"),"") -> Obligatory parameter <contract>(position - 1) is not specified | N20: =IFERROR(RTD("cqg.rtd", ,"ContractData",A20, "LOw",, "T"),"") -> Obligatory parameter <contract>(position - 1) is not specified | O20: =IFERROR(RTD("cqg.rtd", ,"ContractData",A20, "T_CVol",, "T"),"") -> Obligatory parameter <contract>(position - 1) is not specified | Q20: =IFERROR(O20/RTD("cqg.rtd",,"StudyData",A20, "MA", "InputChoice=Vol,MAType=Sim,Period=21", "MA","D","-1","all",,,,"T"),"") ->  | R20: =IUSG!Q3 -> 
A21: =TRIM(IUSG!I4) ->  | B21: News | C21: =IFERROR(RTD("cqg.rtd", ,"ContractData",A21, "LongDescription",, "T")&" ("&RIGHT(A21,LEN(A21)-5)&")","") ->  | H21: =IFERROR(RTD("cqg.rtd", ,"ContractData",A21, "LastTradeToday",, "T"),"") -> Obligatory parameter <contract>(position - 1) is not specified | I21: =IFERROR(RTD("cqg.rtd", ,"ContractData",A21, "NetLastTradeToday",, "T"),"") -> Obligatory parameter <contract>(position - 1) is not specified | J21: =IFERROR(RTD("cqg.rtd", ,"ContractData",A21, "PerCentNetLastTrade",, "T")/100,"") ->  | K21: =IFERROR(I21/RTD("cqg.rtd",,"StudyData",A21, "ATR", "MaType=Sim,Period=10", "ATR","D","-1","ALL",,,"FALSE","T")/100,"") ->  | L21: =IFERROR(RTD("cqg.rtd", ,"ContractData",A21, "OPen",, "T"),"") -> Obligatory parameter <contract>(position - 1) is not specified | M21: =IFERROR(RTD("cqg.rtd", ,"ContractData", A21, "HIgh",, "T"),"") -> Obligatory parameter <contract>(position - 1) is not specified | N21: =IFERROR(RTD("cqg.rtd", ,"ContractData",A21, "LOw",, "T"),"") -> Obligatory parameter <contract>(position - 1) is not specified | O21: =IFERROR(RTD("cqg.rtd", ,"ContractData",A21, "T_CVol",, "T"),"") -> Obligatory parameter <contract>(position - 1) is not specified | Q21: =IFERROR(O21/RTD("cqg.rtd",,"StudyData",A21, "MA", "InputChoice=Vol,MAType=Sim,Period=21", "MA","D","-1","all",,,,"T"),"") ->  | R21: =IUSG!Q4 -> 
A22: =TRIM(IUSG!I5) ->  | B22: News | C22: =IFERROR(RTD("cqg.rtd", ,"ContractData",A22, "LongDescription",, "T")&" ("&RIGHT(A22,LEN(A22)-5)&")","") ->  | H22: =IFERROR(RTD("cqg.rtd", ,"ContractData",A22, "LastTradeToday",, "T"),"") -> Obligatory parameter <contract>(position - 1) is not specified | I22: =IFERROR(RTD("cqg.rtd", ,"ContractData",A22, "NetLastTradeToday",, "T"),"") -> Obligatory parameter <contract>(position - 1) is not specified | J22: =IFERROR(RTD("cqg.rtd", ,"ContractData",A22, "PerCentNetLastTrade",, "T")/100,"") ->  | K22: =IFERROR(I22/RTD("cqg.rtd",,"StudyData",A22, "ATR", "MaType=Sim,Period=10", "ATR","D","-1","ALL",,,"FALSE","T")/100,"") ->  | L22: =IFERROR(RTD("cqg.rtd", ,"ContractData",A22, "OPen",, "T"),"") -> Obligatory parameter <contract>(position - 1) is not specified | M22: =IFERROR(RTD("cqg.rtd", ,"ContractData", A22, "HIgh",, "T"),"") -> Obligatory parameter <contract>(position - 1) is not specified | N22: =IFERROR(RTD("cqg.rtd", ,"ContractData",A22, "LOw",, "T"),"") -> Obligatory parameter <contract>(position - 1) is not specified | O22: =IFERROR(RTD("cqg.rtd", ,"ContractData",A22, "T_CVol",, "T"),"") -> Obligatory parameter <contract>(position - 1) is not specified | Q22: =IFERROR(O22/RTD("cqg.rtd",,"StudyData",A22, "MA", "InputChoice=Vol,MAType=Sim,Period=21", "MA","D","-1","all",,,,"T"),"") ->  | R22: =IUSG!Q5 -> 
A23: =TRIM(IUSG!I6) ->  | B23: News | C23: =IFERROR(RTD("cqg.rtd", ,"ContractData",A23, "LongDescription",, "T")&" ("&RIGHT(A23,LEN(A23)-5)&")","") ->  | H23: =IFERROR(RTD("cqg.rtd", ,"ContractData",A23, "LastTradeToday",, "T"),"") -> Obligatory parameter <contract>(position - 1) is not specified | I23: =IFERROR(RTD("cqg.rtd", ,"ContractData",A23, "NetLastTradeToday",, "T"),"") -> Obligatory parameter <contract>(position - 1) is not specified | J23: =IFERROR(RTD("cqg.rtd", ,"ContractData",A23, "PerCentNetLastTrade",, "T")/100,"") ->  | K23: =IFERROR(I23/RTD("cqg.rtd",,"StudyData",A23, "ATR", "MaType=Sim,Period=10", "ATR","D","-1","ALL",,,"FALSE","T")/100,"") ->  | L23: =IFERROR(RTD("cqg.rtd", ,"ContractData",A23, "OPen",, "T"),"") -> Obligatory parameter <contract>(position - 1) is not specified | M23: =IFERROR(RTD("cqg.rtd", ,"ContractData", A23, "HIgh",, "T"),"") -> Obligatory parameter <contract>(position - 1) is not specified | N23: =IFERROR(RTD("cqg.rtd", ,"ContractData",A23, "LOw",, "T"),"") -> Obligatory parameter <contract>(position - 1) is not specified | O23: =IFERROR(RTD("cqg.rtd", ,"ContractData",A23, "T_CVol",, "T"),"") -> Obligatory parameter <contract>(position - 1) is not specified | Q23: =IFERROR(O23/RTD("cqg.rtd",,"StudyData",A23, "MA", "InputChoice=Vol,MAType=Sim,Period=21", "MA","D","-1","all",,,,"T"),"") ->  | R23: =IUSG!Q6 -> 
A24: =TRIM(IUSG!I7) ->  | B24: News | C24: =IFERROR(RTD("cqg.rtd", ,"ContractData",A24, "LongDescription",, "T")&" ("&RIGHT(A24,LEN(A24)-5)&")","") ->  | H24: =IFERROR(RTD("cqg.rtd", ,"ContractData",A24, "LastTradeToday",, "T"),"") -> Obligatory parameter <contract>(position - 1) is not specified | I24: =IFERROR(RTD("cqg.rtd", ,"ContractData",A24, "NetLastTradeToday",, "T"),"") -> Obligatory parameter <contract>(position - 1) is not specified | J24: =IFERROR(RTD("cqg.rtd", ,"ContractData",A24, "PerCentNetLastTrade",, "T")/100,"") ->  | K24: =IFERROR(I24/RTD("cqg.rtd",,"StudyData",A24, "ATR", "MaType=Sim,Period=10", "ATR","D","-1","ALL",,,"FALSE","T")/100,"") ->  | L24: =IFERROR(RTD("cqg.rtd", ,"ContractData",A24, "OPen",, "T"),"") -> Obligatory parameter <contract>(position - 1) is not specified | M24: =IFERROR(RTD("cqg.rtd", ,"ContractData", A24, "HIgh",, "T"),"") -> Obligatory parameter <contract>(position - 1) is not specified | N24: =IFERROR(RTD("cqg.rtd", ,"ContractData",A24, "LOw",, "T"),"") -> Obligatory parameter <contract>(position - 1) is not specified | O24: =IFERROR(RTD("cqg.rtd", ,"ContractData",A24, "T_CVol",, "T"),"") -> Obligatory parameter <contract>(position - 1) is not specified | Q24: =IFERROR(O24/RTD("cqg.rtd",,"StudyData",A24, "MA", "InputChoice=Vol,MAType=Sim,Period=21", "MA","D","-1","all",,,,"T"),"") ->  | R24: =IUSG!Q7 -> 
A25: =TRIM(IUSG!I8) ->  | B25: News | C25: =IFERROR(RTD("cqg.rtd", ,"ContractData",A25, "LongDescription",, "T")&" ("&RIGHT(A25,LEN(A25)-5)&")","") ->  | H25: =IFERROR(RTD("cqg.rtd", ,"ContractData",A25, "LastTradeToday",, "T"),"") -> Obligatory parameter <contract>(position - 1) is not specified | I25: =IFERROR(RTD("cqg.rtd", ,"ContractData",A25, "NetLastTradeToday",, "T"),"") -> Obligatory parameter <contract>(position - 1) is not specified | J25: =IFERROR(RTD("cqg.rtd", ,"ContractData",A25, "PerCentNetLastTrade",, "T")/100,"") ->  | K25: =IFERROR(I25/RTD("cqg.rtd",,"StudyData",A25, "ATR", "MaType=Sim,Period=10", "ATR","D","-1","ALL",,,"FALSE","T")/100,"") ->  | L25: =IFERROR(RTD("cqg.rtd", ,"ContractData",A25, "OPen",, "T"),"") -> Obligatory parameter <contract>(position - 1) is not specified | M25: =IFERROR(RTD("cqg.rtd", ,"ContractData", A25, "HIgh",, "T"),"") -> Obligatory parameter <contract>(position - 1) is not specified | N25: =IFERROR(RTD("cqg.rtd", ,"ContractData",A25, "LOw",, "T"),"") -> Obligatory parameter <contract>(position - 1) is not specified | O25: =IFERROR(RTD("cqg.rtd", ,"ContractData",A25, "T_CVol",, "T"),"") -> Obligatory parameter <contract>(position - 1) is not specified | Q25: =IFERROR(O25/RTD("cqg.rtd",,"StudyData",A25, "MA", "InputChoice=Vol,MAType=Sim,Period=21", "MA","D","-1","all",,,,"T"),"") ->  | R25: =IUSG!Q8 -> 
A26: =TRIM(IUSG!I9) ->  | B26: News | C26: =IFERROR(RTD("cqg.rtd", ,"ContractData",A26, "LongDescription",, "T")&" ("&RIGHT(A26,LEN(A26)-5)&")","") ->  | H26: =IFERROR(RTD("cqg.rtd", ,"ContractData",A26, "LastTradeToday",, "T"),"") -> Obligatory parameter <contract>(position - 1) is not specified | I26: =IFERROR(RTD("cqg.rtd", ,"ContractData",A26, "NetLastTradeToday",, "T"),"") -> Obligatory parameter <contract>(position - 1) is not specified | J26: =IFERROR(RTD("cqg.rtd", ,"ContractData",A26, "PerCentNetLastTrade",, "T")/100,"") ->  | K26: =IFERROR(I26/RTD("cqg.rtd",,"StudyData",A26, "ATR", "MaType=Sim,Period=10", "ATR","D","-1","ALL",,,"FALSE","T")/100,"") ->  | L26: =IFERROR(RTD("cqg.rtd", ,"ContractData",A26, "OPen",, "T"),"") -> Obligatory parameter <contract>(position - 1) is not specified | M26: =IFERROR(RTD("cqg.rtd", ,"ContractData", A26, "HIgh",, "T"),"") -> Obligatory parameter <contract>(position - 1) is not specified | N26: =IFERROR(RTD("cqg.rtd", ,"ContractData",A26, "LOw",, "T"),"") -> Obligatory parameter <contract>(position - 1) is not specified | O26: =IFERROR(RTD("cqg.rtd", ,"ContractData",A26, "T_CVol",, "T"),"") -> Obligatory parameter <contract>(position - 1) is not specified | Q26: =IFERROR(O26/RTD("cqg.rtd",,"StudyData",A26, "MA", "InputChoice=Vol,MAType=Sim,Period=21", "MA","D","-1","all",,,,"T"),"") ->  | R26: =IUSG!Q9 -> 
A27: =TRIM(IUSG!I10) ->  | B27: News | C27: =IFERROR(RTD("cqg.rtd", ,"ContractData",A27, "LongDescription",, "T")&" ("&RIGHT(A27,LEN(A27)-5)&")","") ->  | H27: =IFERROR(RTD("cqg.rtd", ,"ContractData",A27, "LastTradeToday",, "T"),"") -> Obligatory parameter <contract>(position - 1) is not specified | I27: =IFERROR(RTD("cqg.rtd", ,"ContractData",A27, "NetLastTradeToday",, "T"),"") -> Obligatory parameter <contract>(position - 1) is not specified | J27: =IFERROR(RTD("cqg.rtd", ,"ContractData",A27, "PerCentNetLastTrade",, "T")/100,"") ->  | K27: =IFERROR(I27/RTD("cqg.rtd",,"StudyData",A27, "ATR", "MaType=Sim,Period=10", "ATR","D","-1","ALL",,,"FALSE","T")/100,"") ->  | L27: =IFERROR(RTD("cqg.rtd", ,"ContractData",A27, "OPen",, "T"),"") -> Obligatory parameter <contract>(position - 1) is not specified | M27: =IFERROR(RTD("cqg.rtd", ,"ContractData", A27, "HIgh",, "T"),"") -> Obligatory parameter <contract>(position - 1) is not specified | N27: =IFERROR(RTD("cqg.rtd", ,"ContractData",A27, "LOw",, "T"),"") -> Obligatory parameter <contract>(position - 1) is not specified | O27: =IFERROR(RTD("cqg.rtd", ,"ContractData",A27, "T_CVol",, "T"),"") -> Obligatory parameter <contract>(position - 1) is not specified | Q27: =IFERROR(O27/RTD("cqg.rtd",,"StudyData",A27, "MA", "InputChoice=Vol,MAType=Sim,Period=21", "MA","D","-1","all",,,,"T"),"") ->  | R27: =IUSG!Q10 ->  | S27: Bottom 15 Performing Companies
A28: =TRIM(IUSG!I11) ->  | B28: News | C28: =IFERROR(RTD("cqg.rtd", ,"ContractData",A28, "LongDescription",, "T")&" ("&RIGHT(A28,LEN(A28)-5)&")","") ->  | H28: =IFERROR(RTD("cqg.rtd", ,"ContractData",A28, "LastTradeToday",, "T"),"") -> Obligatory parameter <contract>(position - 1) is not specified | I28: =IFERROR(RTD("cqg.rtd", ,"ContractData",A28, "NetLastTradeToday",, "T"),"") -> Obligatory parameter <contract>(position - 1) is not specified | J28: =IFERROR(RTD("cqg.rtd", ,"ContractData",A28, "PerCentNetLastTrade",, "T")/100,"") ->  | K28: =IFERROR(I28/RTD("cqg.rtd",,"StudyData",A28, "ATR", "MaType=Sim,Period=10", "ATR","D","-1","ALL",,,"FALSE","T")/100,"") ->  | L28: =IFERROR(RTD("cqg.rtd", ,"ContractData",A28, "OPen",, "T"),"") -> Obligatory parameter <contract>(position - 1) is not specified | M28: =IFERROR(RTD("cqg.rtd", ,"ContractData", A28, "HIgh",, "T"),"") -> Obligatory parameter <contract>(position - 1) is not specified | N28: =IFERROR(RTD("cqg.rtd", ,"ContractData",A28, "LOw",, "T"),"") -> Obligatory parameter <contract>(position - 1) is not specified | O28: =IFERROR(RTD("cqg.rtd", ,"ContractData",A28, "T_CVol",, "T"),"") -> Obligatory parameter <contract>(position - 1) is not specified | Q28: =IFERROR(O28/RTD("cqg.rtd",,"StudyData",A28, "MA", "InputChoice=Vol,MAType=Sim,Period=21", "MA","D","-1","all",,,,"T"),"") ->  | R28: =IUSG!Q11 -> 
A29: =TRIM(IUSG!I12) ->  | B29: News | C29: =IFERROR(RTD("cqg.rtd", ,"ContractData",A29, "LongDescription",, "T")&" ("&RIGHT(A29,LEN(A29)-5)&")","") ->  | H29: =IFERROR(RTD("cqg.rtd", ,"ContractData",A29, "LastTradeToday",, "T"),"") -> Obligatory parameter <contract>(position - 1) is not specified | I29: =IFERROR(RTD("cqg.rtd", ,"ContractData",A29, "NetLastTradeToday",, "T"),"") -> Obligatory parameter <contract>(position - 1) is not specified | J29: =IFERROR(RTD("cqg.rtd", ,"ContractData",A29, "PerCentNetLastTrade",, "T")/100,"") ->  | K29: =IFERROR(I29/RTD("cqg.rtd",,"StudyData",A29, "ATR", "MaType=Sim,Period=10", "ATR","D","-1","ALL",,,"FALSE","T")/100,"") ->  | L29: =IFERROR(RTD("cqg.rtd", ,"ContractData",A29, "OPen",, "T"),"") -> Obligatory parameter <contract>(position - 1) is not specified | M29: =IFERROR(RTD("cqg.rtd", ,"ContractData", A29, "HIgh",, "T"),"") -> Obligatory parameter <contract>(position - 1) is not specified | N29: =IFERROR(RTD("cqg.rtd", ,"ContractData",A29, "LOw",, "T"),"") -> Obligatory parameter <contract>(position - 1) is not specified | O29: =IFERROR(RTD("cqg.rtd", ,"ContractData",A29, "T_CVol",, "T"),"") -> Obligatory parameter <contract>(position - 1) is not specified | Q29: =IFERROR(O29/RTD("cqg.rtd",,"StudyData",A29, "MA", "InputChoice=Vol,MAType=Sim,Period=21", "MA","D","-1","all",,,,"T"),"") ->  | R29: =IUSG!Q12 -> 
A30: =TRIM(IUSG!I13) ->  | B30: News | C30: =IFERROR(RTD("cqg.rtd", ,"ContractData",A30, "LongDescription",, "T")&" ("&RIGHT(A30,LEN(A30)-5)&")","") ->  | H30: =IFERROR(RTD("cqg.rtd", ,"ContractData",A30, "LastTradeToday",, "T"),"") -> Obligatory parameter <contract>(position - 1) is not specified | I30: =IFERROR(RTD("cqg.rtd", ,"ContractData",A30, "NetLastTradeToday",, "T"),"") -> Obligatory parameter <contract>(position - 1) is not specified | J30: =IFERROR(RTD("cqg.rtd", ,"ContractData",A30, "PerCentNetLastTrade",, "T")/100,"") ->  | K30: =IFERROR(I30/RTD("cqg.rtd",,"StudyData",A30, "ATR", "MaType=Sim,Period=10", "ATR","D","-1","ALL",,,"FALSE","T")/100,"") ->  | L30: =IFERROR(RTD("cqg.rtd", ,"ContractData",A30, "OPen",, "T"),"") -> Obligatory parameter <contract>(position - 1) is not specified | M30: =IFERROR(RTD("cqg.rtd", ,"ContractData", A30, "HIgh",, "T"),"") -> Obligatory parameter <contract>(position - 1) is not specified | N30: =IFERROR(RTD("cqg.rtd", ,"ContractData",A30, "LOw",, "T"),"") -> Obligatory parameter <contract>(position - 1) is not specified | O30: =IFERROR(RTD("cqg.rtd", ,"ContractData",A30, "T_CVol",, "T"),"") -> Obligatory parameter <contract>(position - 1) is not specified | Q30: =IFERROR(O30/RTD("cqg.rtd",,"StudyData",A30, "MA", "InputChoice=Vol,MAType=Sim,Period=21", "MA","D","-1","all",,,,"T"),"") ->  | R30: =IUSG!Q13 -> 
A31: =TRIM(IUSG!I14) ->  | B31: News | C31: =IFERROR(RTD("cqg.rtd", ,"ContractData",A31, "LongDescription",, "T")&" ("&RIGHT(A31,LEN(A31)-5)&")","") ->  | H31: =IFERROR(RTD("cqg.rtd", ,"ContractData",A31, "LastTradeToday",, "T"),"") -> Obligatory parameter <contract>(position - 1) is not specified | I31: =IFERROR(RTD("cqg.rtd", ,"ContractData",A31, "NetLastTradeToday",, "T"),"") -> Obligatory parameter <contract>(position - 1) is not specified | J31: =IFERROR(RTD("cqg.rtd", ,"ContractData",A31, "PerCentNetLastTrade",, "T")/100,"") ->  | K31: =IFERROR(I31/RTD("cqg.rtd",,"StudyData",A31, "ATR", "MaType=Sim,Period=10", "ATR","D","-1","ALL",,,"FALSE","T")/100,"") ->  | L31: =IFERROR(RTD("cqg.rtd", ,"ContractData",A31, "OPen",, "T"),"") -> Obligatory parameter <contract>(position - 1) is not specified | M31: =IFERROR(RTD("cqg.rtd", ,"ContractData", A31, "HIgh",, "T"),"") -> Obligatory parameter <contract>(position - 1) is not specified | N31: =IFERROR(RTD("cqg.rtd", ,"ContractData",A31, "LOw",, "T"),"") -> Obligatory parameter <contract>(position - 1) is not specified | O31: =IFERROR(RTD("cqg.rtd", ,"ContractData",A31, "T_CVol",, "T"),"") -> Obligatory parameter <contract>(position - 1) is not specified | Q31: =IFERROR(O31/RTD("cqg.rtd",,"StudyData",A31, "MA", "InputChoice=Vol,MAType=Sim,Period=21", "MA","D","-1","all",,,,"T"),"") ->  | R31: =IUSG!Q14 -> 
A32: =TRIM(IUSG!I15) ->  | B32: News | C32: =IFERROR(RTD("cqg.rtd", ,"ContractData",A32, "LongDescription",, "T")&" ("&RIGHT(A32,LEN(A32)-5)&")","") ->  | H32: =IFERROR(RTD("cqg.rtd", ,"ContractData",A32, "LastTradeToday",, "T"),"") -> Obligatory parameter <contract>(position - 1) is not specified | I32: =IFERROR(RTD("cqg.rtd", ,"ContractData",A32, "NetLastTradeToday",, "T"),"") -> Obligatory parameter <contract>(position - 1) is not specified | J32: =IFERROR(RTD("cqg.rtd", ,"ContractData",A32, "PerCentNetLastTrade",, "T")/100,"") ->  | K32: =IFERROR(I32/RTD("cqg.rtd",,"StudyData",A32, "ATR", "MaType=Sim,Period=10", "ATR","D","-1","ALL",,,"FALSE","T")/100,"") ->  | L32: =IFERROR(RTD("cqg.rtd", ,"ContractData",A32, "OPen",, "T"),"") -> Obligatory parameter <contract>(position - 1) is not specified | M32: =IFERROR(RTD("cqg.rtd", ,"ContractData", A32, "HIgh",, "T"),"") -> Obligatory parameter <contract>(position - 1) is not specified | N32: =IFERROR(RTD("cqg.rtd", ,"ContractData",A32, "LOw",, "T"),"") -> Obligatory parameter <contract>(position - 1) is not specified | O32: =IFERROR(RTD("cqg.rtd", ,"ContractData",A32, "T_CVol",, "T"),"") -> Obligatory parameter <contract>(position - 1) is not specified | Q32: =IFERROR(O32/RTD("cqg.rtd",,"StudyData",A32, "MA", "InputChoice=Vol,MAType=Sim,Period=21", "MA","D","-1","all",,,,"T"),"") ->  | R32: =IUSG!Q15 -> 
C33: Bottom 15 Description | H33: Last | I33: NC | J33: %NC | K33: NC/ATR | L33: Open | M33: High | N33: Low | O33: Volume | Q33: Ratio
A34: =TRIM(IUSG!N15) ->  | B34: News | C34: =IFERROR(RTD("cqg.rtd", ,"ContractData",A34, "LongDescription",, "T")&" ("&RIGHT(A34,LEN(A34)-5)&")","") ->  | H34: =IFERROR(RTD("cqg.rtd", ,"ContractData",A34, "LastTradeToday",, "T"),"") -> Obligatory parameter <contract>(position - 1) is not specified | I34: =IFERROR(RTD("cqg.rtd", ,"ContractData",A34, "NetLastTradeToday",, "T"),"") -> Obligatory parameter <contract>(position - 1) is not specified | J34: =IFERROR(RTD("cqg.rtd", ,"ContractData",A34, "PerCentNetLastTrade",, "T")/100,"") ->  | K34: =IFERROR( I34/RTD("cqg.rtd",,"StudyData",A34, "ATR", "MaType=Sim,Period=10", "ATR","D","-1","ALL",,,"FALSE","T")/100,"") ->  | L34: =IFERROR(RTD("cqg.rtd", ,"ContractData",A34, "OPen",, "T"),"") -> Obligatory parameter <contract>(position - 1) is not specified | M34: =IFERROR(RTD("cqg.rtd", ,"ContractData", A34, "HIgh",, "T"),"") -> Obligatory parameter <contract>(position - 1) is not specified | N34: =IFERROR(RTD("cqg.rtd", ,"ContractData",A34, "LOw",, "T"),"") -> Obligatory parameter <contract>(position - 1) is not specified | O34: =IFERROR(RTD("cqg.rtd", ,"ContractData",A34, "T_CVol",, "T"),"") -> Obligatory parameter <contract>(position - 1) is not specified | Q34: =IFERROR(O34/RTD("cqg.rtd",,"StudyData",A34, "MA", "InputChoice=Vol,MAType=Sim,Period=21", "MA","D","-1","all",,,,"T"),"") ->  | R34: =IUSG!AB1 -> 
A35: =TRIM(IUSG!N14) ->  | B35: News | C35: =IFERROR(RTD("cqg.rtd", ,"ContractData",A35, "LongDescription",, "T")&" ("&RIGHT(A35,LEN(A35)-5)&")","") ->  | H35: =IFERROR(RTD("cqg.rtd", ,"ContractData",A35, "LastTradeToday",, "T"),"") -> Obligatory parameter <contract>(position - 1) is not specified | I35: =IFERROR(RTD("cqg.rtd", ,"ContractData",A35, "NetLastTradeToday",, "T"),"") -> Obligatory parameter <contract>(position - 1) is not specified | J35: =IFERROR(RTD("cqg.rtd", ,"ContractData",A35, "PerCentNetLastTrade",, "T")/100,"") ->  | K35: =IFERROR( I35/RTD("cqg.rtd",,"StudyData",A35, "ATR", "MaType=Sim,Period=10", "ATR","D","-1","ALL",,,"FALSE","T")/100,"") ->  | L35: =IFERROR(RTD("cqg.rtd", ,"ContractData",A35, "OPen",, "T"),"") -> Obligatory parameter <contract>(position - 1) is not specified | M35: =IFERROR(RTD("cqg.rtd", ,"ContractData", A35, "HIgh",, "T"),"") -> Obligatory parameter <contract>(position - 1) is not specified | N35: =IFERROR(RTD("cqg.rtd", ,"ContractData",A35, "LOw",, "T"),"") -> Obligatory parameter <contract>(position - 1) is not specified | O35: =IFERROR(RTD("cqg.rtd", ,"ContractData",A35, "T_CVol",, "T"),"") -> Obligatory parameter <contract>(position - 1) is not specified | Q35: =IFERROR(O35/RTD("cqg.rtd",,"StudyData",A35, "MA", "InputChoice=Vol,MAType=Sim,Period=21", "MA","D","-1","all",,,,"T"),"") ->  | R35: =IUSG!AB2 -> 
A36: =TRIM(IUSG!N13) ->  | B36: News | C36: =IFERROR(RTD("cqg.rtd", ,"ContractData",A36, "LongDescription",, "T")&" ("&RIGHT(A36,LEN(A36)-5)&")","") ->  | H36: =IFERROR(RTD("cqg.rtd", ,"ContractData",A36, "LastTradeToday",, "T"),"") -> Obligatory parameter <contract>(position - 1) is not specified | I36: =IFERROR(RTD("cqg.rtd", ,"ContractData",A36, "NetLastTradeToday",, "T"),"") -> Obligatory parameter <contract>(position - 1) is not specified | J36: =IFERROR(RTD("cqg.rtd", ,"ContractData",A36, "PerCentNetLastTrade",, "T")/100,"") ->  | K36: =IFERROR( I36/RTD("cqg.rtd",,"StudyData",A36, "ATR", "MaType=Sim,Period=10", "ATR","D","-1","ALL",,,"FALSE","T")/100,"") ->  | L36: =IFERROR(RTD("cqg.rtd", ,"ContractData",A36, "OPen",, "T"),"") -> Obligatory parameter <contract>(position - 1) is not specified | M36: =IFERROR(RTD("cqg.rtd", ,"ContractData", A36, "HIgh",, "T"),"") -> Obligatory parameter <contract>(position - 1) is not specified | N36: =IFERROR(RTD("cqg.rtd", ,"ContractData",A36, "LOw",, "T"),"") -> Obligatory parameter <contract>(position - 1) is not specified | O36: =IFERROR(RTD("cqg.rtd", ,"ContractData",A36, "T_CVol",, "T"),"") -> Obligatory parameter <contract>(position - 1) is not specified | Q36: =IFERROR(O36/RTD("cqg.rtd",,"StudyData",A36, "MA", "InputChoice=Vol,MAType=Sim,Period=21", "MA","D","-1","all",,,,"T"),"") ->  | R36: =IUSG!AB3 -> 
A37: =TRIM(IUSG!N12) ->  | B37: News | C37: =IFERROR(RTD("cqg.rtd", ,"ContractData",A37, "LongDescription",, "T")&" ("&RIGHT(A37,LEN(A37)-5)&")","") ->  | H37: =IFERROR(RTD("cqg.rtd", ,"ContractData",A37, "LastTradeToday",, "T"),"") -> Obligatory parameter <contract>(position - 1) is not specified | I37: =IFERROR(RTD("cqg.rtd", ,"ContractData",A37, "NetLastTradeToday",, "T"),"") -> Obligatory parameter <contract>(position - 1) is not specified | J37: =IFERROR(RTD("cqg.rtd", ,"ContractData",A37, "PerCentNetLastTrade",, "T")/100,"") ->  | K37: =IFERROR( I37/RTD("cqg.rtd",,"StudyData",A37, "ATR", "MaType=Sim,Period=10", "ATR","D","-1","ALL",,,"FALSE","T")/100,"") ->  | L37: =IFERROR(RTD("cqg.rtd", ,"ContractData",A37, "OPen",, "T"),"") -> Obligatory parameter <contract>(position - 1) is not specified | M37: =IFERROR(RTD("cqg.rtd", ,"ContractData", A37, "HIgh",, "T"),"") -> Obligatory parameter <contract>(position - 1) is not specified | N37: =IFERROR(RTD("cqg.rtd", ,"ContractData",A37, "LOw",, "T"),"") -> Obligatory parameter <contract>(position - 1) is not specified | O37: =IFERROR(RTD("cqg.rtd", ,"ContractData",A37, "T_CVol",, "T"),"") -> Obligatory parameter <contract>(position - 1) is not specified | Q37: =IFERROR(O37/RTD("cqg.rtd",,"StudyData",A37, "MA", "InputChoice=Vol,MAType=Sim,Period=21", "MA","D","-1","all",,,,"T"),"") ->  | R37: =IUSG!AB4 -> 
A38: =TRIM(IUSG!N11) ->  | B38: News | C38: =IFERROR(RTD("cqg.rtd", ,"ContractData",A38, "LongDescription",, "T")&" ("&RIGHT(A38,LEN(A38)-5)&")","") ->  | H38: =IFERROR(RTD("cqg.rtd", ,"ContractData",A38, "LastTradeToday",, "T"),"") -> Obligatory parameter <contract>(position - 1) is not specified | I38: =IFERROR(RTD("cqg.rtd", ,"ContractData",A38, "NetLastTradeToday",, "T"),"") -> Obligatory parameter <contract>(position - 1) is not specified | J38: =IFERROR(RTD("cqg.rtd", ,"ContractData",A38, "PerCentNetLastTrade",, "T")/100,"") ->  | K38: =IFERROR( I38/RTD("cqg.rtd",,"StudyData",A38, "ATR", "MaType=Sim,Period=10", "ATR","D","-1","ALL",,,"FALSE","T")/100,"") ->  | L38: =IFERROR(RTD("cqg.rtd", ,"ContractData",A38, "OPen",, "T"),"") -> Obligatory parameter <contract>(position - 1) is not specified | M38: =IFERROR(RTD("cqg.rtd", ,"ContractData", A38, "HIgh",, "T"),"") -> Obligatory parameter <contract>(position - 1) is not specified | N38: =IFERROR(RTD("cqg.rtd", ,"ContractData",A38, "LOw",, "T"),"") -> Obligatory parameter <contract>(position - 1) is not specified | O38: =IFERROR(RTD("cqg.rtd", ,"ContractData",A38, "T_CVol",, "T"),"") -> Obligatory parameter <contract>(position - 1) is not specified | Q38: =IFERROR(O38/RTD("cqg.rtd",,"StudyData",A38, "MA", "InputChoice=Vol,MAType=Sim,Period=21", "MA","D","-1","all",,,,"T"),"") ->  | R38: =IUSG!AB5 -> 
A39: =TRIM(IUSG!N10) ->  | B39: News | C39: =IFERROR(RTD("cqg.rtd", ,"ContractData",A39, "LongDescription",, "T")&" ("&RIGHT(A39,LEN(A39)-5)&")","") ->  | H39: =IFERROR(RTD("cqg.rtd", ,"ContractData",A39, "LastTradeToday",, "T"),"") -> Obligatory parameter <contract>(position - 1) is not specified | I39: =IFERROR(RTD("cqg.rtd", ,"ContractData",A39, "NetLastTradeToday",, "T"),"") -> Obligatory parameter <contract>(position - 1) is not specified | J39: =IFERROR(RTD("cqg.rtd", ,"ContractData",A39, "PerCentNetLastTrade",, "T")/100,"") ->  | K39: =IFERROR( I39/RTD("cqg.rtd",,"StudyData",A39, "ATR", "MaType=Sim,Period=10", "ATR","D","-1","ALL",,,"FALSE","T")/100,"") ->  | L39: =IFERROR(RTD("cqg.rtd", ,"ContractData",A39, "OPen",, "T"),"") -> Obligatory parameter <contract>(position - 1) is not specified | M39: =IFERROR(RTD("cqg.rtd", ,"ContractData", A39, "HIgh",, "T"),"") -> Obligatory parameter <contract>(position - 1) is not specified | N39: =IFERROR(RTD("cqg.rtd", ,"ContractData",A39, "LOw",, "T"),"") -> Obligatory parameter <contract>(position - 1) is not specified | O39: =IFERROR(RTD("cqg.rtd", ,"ContractData",A39, "T_CVol",, "T"),"") -> Obligatory parameter <contract>(position - 1) is not specified | Q39: =IFERROR(O39/RTD("cqg.rtd",,"StudyData",A39, "MA", "InputChoice=Vol,MAType=Sim,Period=21", "MA","D","-1","all",,,,"T"),"") ->  | R39: =IUSG!AB6 -> 
A40: =TRIM(IUSG!N9) ->  | B40: News | C40: =IFERROR(RTD("cqg.rtd", ,"ContractData",A40, "LongDescription",, "T")&" ("&RIGHT(A40,LEN(A40)-5)&")","") ->  | H40: =IFERROR(RTD("cqg.rtd", ,"ContractData",A40, "LastTradeToday",, "T"),"") -> Obligatory parameter <contract>(position - 1) is not specified | I40: =IFERROR(RTD("cqg.rtd", ,"ContractData",A40, "NetLastTradeToday",, "T"),"") -> Obligatory parameter <contract>(position - 1) is not specified | J40: =IFERROR(RTD("cqg.rtd", ,"ContractData",A40, "PerCentNetLastTrade",, "T")/100,"") ->  | K40: =IFERROR( I40/RTD("cqg.rtd",,"StudyData",A40, "ATR", "MaType=Sim,Period=10", "ATR","D","-1","ALL",,,"FALSE","T")/100,"") ->  | L40: =IFERROR(RTD("cqg.rtd", ,"ContractData",A40, "OPen",, "T"),"") -> Obligatory parameter <contract>(position - 1) is not specified | M40: =IFERROR(RTD("cqg.rtd", ,"ContractData", A40, "HIgh",, "T"),"") -> Obligatory parameter <contract>(position - 1) is not specified | N40: =IFERROR(RTD("cqg.rtd", ,"ContractData",A40, "LOw",, "T"),"") -> Obligatory parameter <contract>(position - 1) is not specified | O40: =IFERROR(RTD("cqg.rtd", ,"ContractData",A40, "T_CVol",, "T"),"") -> Obligatory parameter <contract>(position - 1) is not specified | Q40: =IFERROR(O40/RTD("cqg.rtd",,"StudyData",A40, "MA", "InputChoice=Vol,MAType=Sim,Period=21", "MA","D","-1","all",,,,"T"),"") ->  | R40: =IUSG!AB7 -> 
A41: =TRIM(IUSG!N8) ->  | B41: News | C41: =IFERROR(RTD("cqg.rtd", ,"ContractData",A41, "LongDescription",, "T")&" ("&RIGHT(A41,LEN(A41)-5)&")","") ->  | H41: =IFERROR(RTD("cqg.rtd", ,"ContractData",A41, "LastTradeToday",, "T"),"") -> Obligatory parameter <contract>(position - 1) is not specified | I41: =IFERROR(RTD("cqg.rtd", ,"ContractData",A41, "NetLastTradeToday",, "T"),"") -> Obligatory parameter <contract>(position - 1) is not specified | J41: =IFERROR(RTD("cqg.rtd", ,"ContractData",A41, "PerCentNetLastTrade",, "T")/100,"") ->  | K41: =IFERROR( I41/RTD("cqg.rtd",,"StudyData",A41, "ATR", "MaType=Sim,Period=10", "ATR","D","-1","ALL",,,"FALSE","T")/100,"") ->  | L41: =IFERROR(RTD("cqg.rtd", ,"ContractData",A41, "OPen",, "T"),"") -> Obligatory parameter <contract>(position - 1) is not specified | M41: =IFERROR(RTD("cqg.rtd", ,"ContractData", A41, "HIgh",, "T"),"") -> Obligatory parameter <contract>(position - 1) is not specified | N41: =IFERROR(RTD("cqg.rtd", ,"ContractData",A41, "LOw",, "T"),"") -> Obligatory parameter <contract>(position - 1) is not specified | O41: =IFERROR(RTD("cqg.rtd", ,"ContractData",A41, "T_CVol",, "T"),"") -> Obligatory parameter <contract>(position - 1) is not specified | Q41: =IFERROR(O41/RTD("cqg.rtd",,"StudyData",A41, "MA", "InputChoice=Vol,MAType=Sim,Period=21", "MA","D","-1","all",,,,"T"),"") ->  | R41: =IUSG!AB8 -> 
A42: =TRIM(IUSG!N7) ->  | B42: News | C42: =IFERROR(RTD("cqg.rtd", ,"ContractData",A42, "LongDescription",, "T")&" ("&RIGHT(A42,LEN(A42)-5)&")","") ->  | H42: =IFERROR(RTD("cqg.rtd", ,"ContractData",A42, "LastTradeToday",, "T"),"") -> Obligatory parameter <contract>(position - 1) is not specified | I42: =IFERROR(RTD("cqg.rtd", ,"ContractData",A42, "NetLastTradeToday",, "T"),"") -> Obligatory parameter <contract>(position - 1) is not specified | J42: =IFERROR(RTD("cqg.rtd", ,"ContractData",A42, "PerCentNetLastTrade",, "T")/100,"") ->  | K42: =IFERROR( I42/RTD("cqg.rtd",,"StudyData",A42, "ATR", "MaType=Sim,Period=10", "ATR","D","-1","ALL",,,"FALSE","T")/100,"") ->  | L42: =IFERROR(RTD("cqg.rtd", ,"ContractData",A42, "OPen",, "T"),"") -> Obligatory parameter <contract>(position - 1) is not specified | M42: =IFERROR(RTD("cqg.rtd", ,"ContractData", A42, "HIgh",, "T"),"") -> Obligatory parameter <contract>(position - 1) is not specified | N42: =IFERROR(RTD("cqg.rtd", ,"ContractData",A42, "LOw",, "T"),"") -> Obligatory parameter <contract>(position - 1) is not specified | O42: =IFERROR(RTD("cqg.rtd", ,"ContractData",A42, "T_CVol",, "T"),"") -> Obligatory parameter <contract>(position - 1) is not specified | Q42: =IFERROR(O42/RTD("cqg.rtd",,"StudyData",A42, "MA", "InputChoice=Vol,MAType=Sim,Period=21", "MA","D","-1","all",,,,"T"),"") ->  | R42: =IUSG!AB9 -> 
A43: =TRIM(IUSG!N6) ->  | B43: News | C43: =IFERROR(RTD("cqg.rtd", ,"ContractData",A43, "LongDescription",, "T")&" ("&RIGHT(A43,LEN(A43)-5)&")","") ->  | H43: =IFERROR(RTD("cqg.rtd", ,"ContractData",A43, "LastTradeToday",, "T"),"") -> Obligatory parameter <contract>(position - 1) is not specified | I43: =IFERROR(RTD("cqg.rtd", ,"ContractData",A43, "NetLastTradeToday",, "T"),"") -> Obligatory parameter <contract>(position - 1) is not specified | J43: =IFERROR(RTD("cqg.rtd", ,"ContractData",A43, "PerCentNetLastTrade",, "T")/100,"") ->  | K43: =IFERROR( I43/RTD("cqg.rtd",,"StudyData",A43, "ATR", "MaType=Sim,Period=10", "ATR","D","-1","ALL",,,"FALSE","T")/100,"") ->  | L43: =IFERROR(RTD("cqg.rtd", ,"ContractData",A43, "OPen",, "T"),"") -> Obligatory parameter <contract>(position - 1) is not specified | M43: =IFERROR(RTD("cqg.rtd", ,"ContractData", A43, "HIgh",, "T"),"") -> Obligatory parameter <contract>(position - 1) is not specified | N43: =IFERROR(RTD("cqg.rtd", ,"ContractData",A43, "LOw",, "T"),"") -> Obligatory parameter <contract>(position - 1) is not specified | O43: =IFERROR(RTD("cqg.rtd", ,"ContractData",A43, "T_CVol",, "T"),"") -> Obligatory parameter <contract>(position - 1) is not specified | Q43: =IFERROR(O43/RTD("cqg.rtd",,"StudyData",A43, "MA", "InputChoice=Vol,MAType=Sim,Period=21", "MA","D","-1","all",,,,"T"),"") ->  | R43: =IUSG!AB10 -> 
A44: =TRIM(IUSG!N5) ->  | B44: News | C44: =IFERROR(RTD("cqg.rtd", ,"ContractData",A44, "LongDescription",, "T")&" ("&RIGHT(A44,LEN(A44)-5)&")","") ->  | H44: =IFERROR(RTD("cqg.rtd", ,"ContractData",A44, "LastTradeToday",, "T"),"") -> Obligatory parameter <contract>(position - 1) is not specified | I44: =IFERROR(RTD("cqg.rtd", ,"ContractData",A44, "NetLastTradeToday",, "T"),"") -> Obligatory parameter <contract>(position - 1) is not specified | J44: =IFERROR(RTD("cqg.rtd", ,"ContractData",A44, "PerCentNetLastTrade",, "T")/100,"") ->  | K44: =IFERROR( I44/RTD("cqg.rtd",,"StudyData",A44, "ATR", "MaType=Sim,Period=10", "ATR","D","-1","ALL",,,"FALSE","T")/100,"") ->  | L44: =IFERROR(RTD("cqg.rtd", ,"ContractData",A44, "OPen",, "T"),"") -> Obligatory parameter <contract>(position - 1) is not specified | M44: =IFERROR(RTD("cqg.rtd", ,"ContractData", A44, "HIgh",, "T"),"") -> Obligatory parameter <contract>(position - 1) is not specified | N44: =IFERROR(RTD("cqg.rtd", ,"ContractData",A44, "LOw",, "T"),"") -> Obligatory parameter <contract>(position - 1) is not specified | O44: =IFERROR(RTD("cqg.rtd", ,"ContractData",A44, "T_CVol",, "T"),"") -> Obligatory parameter <contract>(position - 1) is not specified | Q44: =IFERROR(O44/RTD("cqg.rtd",,"StudyData",A44, "MA", "InputChoice=Vol,MAType=Sim,Period=21", "MA","D","-1","all",,,,"T"),"") ->  | R44: =IUSG!AB11 -> 
A45: =TRIM(IUSG!N4) ->  | B45: News | C45: =IFERROR(RTD("cqg.rtd", ,"ContractData",A45, "LongDescription",, "T")&" ("&RIGHT(A45,LEN(A45)-5)&")","") ->  | H45: =IFERROR(RTD("cqg.rtd", ,"ContractData",A45, "LastTradeToday",, "T"),"") -> Obligatory parameter <contract>(position - 1) is not specified | I45: =IFERROR(RTD("cqg.rtd", ,"ContractData",A45, "NetLastTradeToday",, "T"),"") -> Obligatory parameter <contract>(position - 1) is not specified | J45: =IFERROR(RTD("cqg.rtd", ,"ContractData",A45, "PerCentNetLastTrade",, "T")/100,"") ->  | K45: =IFERROR( I45/RTD("cqg.rtd",,"StudyData",A45, "ATR", "MaType=Sim,Period=10", "ATR","D","-1","ALL",,,"FALSE","T")/100,"") ->  | L45: =IFERROR(RTD("cqg.rtd", ,"ContractData",A45, "OPen",, "T"),"") -> Obligatory parameter <contract>(position - 1) is not specified | M45: =IFERROR(RTD("cqg.rtd", ,"ContractData", A45, "HIgh",, "T"),"") -> Obligatory parameter <contract>(position - 1) is not specified | N45: =IFERROR(RTD("cqg.rtd", ,"ContractData",A45, "LOw",, "T"),"") -> Obligatory parameter <contract>(position - 1) is not specified | O45: =IFERROR(RTD("cqg.rtd", ,"ContractData",A45, "T_CVol",, "T"),"") -> Obligatory parameter <contract>(position - 1) is not specified | Q45: =IFERROR(O45/RTD("cqg.rtd",,"StudyData",A45, "MA", "InputChoice=Vol,MAType=Sim,Period=21", "MA","D","-1","all",,,,"T"),"") ->  | R45: =IUSG!AB12 -> 
A46: =TRIM(IUSG!N3) ->  | B46: News | C46: =IFERROR(RTD("cqg.rtd", ,"ContractData",A46, "LongDescription",, "T")&" ("&RIGHT(A46,LEN(A46)-5)&")","") ->  | H46: =IFERROR(RTD("cqg.rtd", ,"ContractData",A46, "LastTradeToday",, "T"),"") -> Obligatory parameter <contract>(position - 1) is not specified | I46: =IFERROR(RTD("cqg.rtd", ,"ContractData",A46, "NetLastTradeToday",, "T"),"") -> Obligatory parameter <contract>(position - 1) is not specified | J46: =IFERROR(RTD("cqg.rtd", ,"ContractData",A46, "PerCentNetLastTrade",, "T")/100,"") ->  | K46: =IFERROR( I46/RTD("cqg.rtd",,"StudyData",A46, "ATR", "MaType=Sim,Period=10", "ATR","D","-1","ALL",,,"FALSE","T")/100,"") ->  | L46: =IFERROR(RTD("cqg.rtd", ,"ContractData",A46, "OPen",, "T"),"") -> Obligatory parameter <contract>(position - 1) is not specified | M46: =IFERROR(RTD("cqg.rtd", ,"ContractData", A46, "HIgh",, "T"),"") -> Obligatory parameter <contract>(position - 1) is not specified | N46: =IFERROR(RTD("cqg.rtd", ,"ContractData",A46, "LOw",, "T"),"") -> Obligatory parameter <contract>(position - 1) is not specified | O46: =IFERROR(RTD("cqg.rtd", ,"ContractData",A46, "T_CVol",, "T"),"") -> Obligatory parameter <contract>(position - 1) is not specified | Q46: =IFERROR(O46/RTD("cqg.rtd",,"StudyData",A46, "MA", "InputChoice=Vol,MAType=Sim,Period=21", "MA","D","-1","all",,,,"T"),"") ->  | R46: =IUSG!AB13 -> 
A47: =TRIM(IUSG!N2) ->  | B47: News | C47: =IFERROR(RTD("cqg.rtd", ,"ContractData",A47, "LongDescription",, "T")&" ("&RIGHT(A47,LEN(A47)-5)&")","") ->  | H47: =IFERROR(RTD("cqg.rtd", ,"ContractData",A47, "LastTradeToday",, "T"),"") -> Obligatory parameter <contract>(position - 1) is not specified | I47: =IFERROR(RTD("cqg.rtd", ,"ContractData",A47, "NetLastTradeToday",, "T"),"") -> Obligatory parameter <contract>(position - 1) is not specified | J47: =IFERROR(RTD("cqg.rtd", ,"ContractData",A47, "PerCentNetLastTrade",, "T")/100,"") ->  | K47: =IFERROR( I47/RTD("cqg.rtd",,"StudyData",A47, "ATR", "MaType=Sim,Period=10", "ATR","D","-1","ALL",,,"FALSE","T")/100,"") ->  | L47: =IFERROR(RTD("cqg.rtd", ,"ContractData",A47, "OPen",, "T"),"") -> Obligatory parameter <contract>(position - 1) is not specified | M47: =IFERROR(RTD("cqg.rtd", ,"ContractData", A47, "HIgh",, "T"),"") -> Obligatory parameter <contract>(position - 1) is not specified | N47: =IFERROR(RTD("cqg.rtd", ,"ContractData",A47, "LOw",, "T"),"") -> Obligatory parameter <contract>(position - 1) is not specified | O47: =IFERROR(RTD("cqg.rtd", ,"ContractData",A47, "T_CVol",, "T"),"") -> Obligatory parameter <contract>(position - 1) is not specified | Q47: =IFERROR(O47/RTD("cqg.rtd",,"StudyData",A47, "MA", "InputChoice=Vol,MAType=Sim,Period=21", "MA","D","-1","all",,,,"T"),"") ->  | R47: =IUSG!AB14 -> 
A48: =TRIM(IUSG!N1) ->  | B48: News | C48: =IFERROR(RTD("cqg.rtd", ,"ContractData",A48, "LongDescription",, "T")&" ("&RIGHT(A48,LEN(A48)-5)&")","") ->  | H48: =IFERROR(RTD("cqg.rtd", ,"ContractData",A48, "LastTradeToday",, "T"),"") -> Obligatory parameter <contract>(position - 1) is not specified | I48: =IFERROR(RTD("cqg.rtd", ,"ContractData",A48, "NetLastTradeToday",, "T"),"") -> Obligatory parameter <contract>(position - 1) is not specified | J48: =IFERROR(RTD("cqg.rtd", ,"ContractData",A48, "PerCentNetLastTrade",, "T")/100,"") ->  | K48: =IFERROR( I48/RTD("cqg.rtd",,"StudyData",A48, "ATR", "MaType=Sim,Period=10", "ATR","D","-1","ALL",,,"FALSE","T")/100,"") ->  | L48: =IFERROR(RTD("cqg.rtd", ,"ContractData",A48, "OPen",, "T"),"") -> Obligatory parameter <contract>(position - 1) is not specified | M48: =IFERROR(RTD("cqg.rtd", ,"ContractData", A48, "HIgh",, "T"),"") -> Obligatory parameter <contract>(position - 1) is not specified | N48: =IFERROR(RTD("cqg.rtd", ,"ContractData",A48, "LOw",, "T"),"") -> Obligatory parameter <contract>(position - 1) is not specified | O48: =IFERROR(RTD("cqg.rtd", ,"ContractData",A48, "T_CVol",, "T"),"") -> Obligatory parameter <contract>(position - 1) is not specified | Q48: =IFERROR(O48/RTD("cqg.rtd",,"StudyData",A48, "MA", "InputChoice=Vol,MAType=Sim,Period=21", "MA","D","-1","all",,,,"T"),"") ->  | R48: =IUSG!AB15 -> 
C49: CQG Inc., Copyright © 2025 | G49: Designed by Thom Hartle | J49: iShares is a registered trademark of BlackRock, Inc. S&P® is a registered trademark of Standard & Poor’s Financial Services LLC | W49: =IUSG!H450 -> 1 | X49: of the stocks in the ETF are higher today

Sheet Symbols (hidden)
A1: =RTD("cqg.rtd", ,"ContractData",B1, "LongDescription",, "T") -> American Airlines Group Inc. | B1: S.US.AAL
A2: =RTD("cqg.rtd", ,"ContractData",B2, "LongDescription",, "T") -> AAON | B2: S.US.AAON
A3: =RTD("cqg.rtd", ,"ContractData",B3, "LongDescription",, "T") -> Apple Inc | B3: S.US.AAPL
A4: =RTD("cqg.rtd", ,"ContractData",B4, "LongDescription",, "T") -> AbbVie Inc. | B4: S.US.ABBV
A5: =RTD("cqg.rtd", ,"ContractData",B5, "LongDescription",, "T") -> Airbnb, Inc. Class A | B5: S.US.ABNB
A6: =RTD("cqg.rtd", ,"ContractData",B6, "LongDescription",, "T") -> Arch Capital Grp Ltd | B6: S.US.ACGL
A7: =RTD("cqg.rtd", ,"ContractData",B7, "LongDescription",, "T") -> AECOM | B7: S.US.ACM
A8: =RTD("cqg.rtd", ,"ContractData",B8, "LongDescription",, "T") -> Adobe Inc. | B8: S.US.ADBE
A9: =RTD("cqg.rtd", ,"ContractData",B9, "LongDescription",, "T") -> AGREE REALTY CORP | B9: S.US.ADC
A10: =RTD("cqg.rtd", ,"ContractData",B10, "LongDescription",, "T") -> Auto Data Processing Inc | B10: S.US.ADP
A11: =RTD("cqg.rtd", ,"ContractData",B11, "LongDescription",, "T") -> Autodesk Inc | B11: S.US.ADSK
A12: =RTD("cqg.rtd", ,"ContractData",B12, "LongDescription",, "T") -> AFG Fincl Grp Hldg Co | B12: S.US.AFG
A13: =RTD("cqg.rtd", ,"ContractData",B13, "LongDescription",, "T") -> Applied Indust Tech Inc | B13: S.US.AIT
A14: =RTD("cqg.rtd", ,"ContractData",B14, "LongDescription",, "T") -> Arthur J Gallagher Co | B14: S.US.AJG
A15: =RTD("cqg.rtd", ,"ContractData",B15, "LongDescription",, "T") -> Allegro MicroSystems, Inc. | B15: S.US.ALGM
A16: =RTD("cqg.rtd", ,"ContractData",B16, "LongDescription",, "T") -> Allegion plc | B16: S.US.ALLE
A17: =RTD("cqg.rtd", ,"ContractData",B17, "LongDescription",, "T") -> Altair Engineering Inc. Class A | B17: S.US.ALTR
A18: =RTD("cqg.rtd", ,"ContractData",B18, "LongDescription",, "T") -> Antero Resources Midstream LLC | B18: S.US.AM
A19: =RTD("cqg.rtd", ,"ContractData",B19, "LongDescription",, "T") -> Applied Materials Inc | B19: S.US.AMAT
A20: =RTD("cqg.rtd", ,"ContractData",B20, "LongDescription",, "T") -> Ametek Inc New | B20: S.US.AME
A21: =RTD("cqg.rtd", ,"ContractData",B21, "LongDescription",, "T") -> Affiliated Managers Grp Inc | B21: S.US.AMG
A22: =RTD("cqg.rtd", ,"ContractData",B22, "LongDescription",, "T") -> Amgen Inc | B22: S.US.AMGN
A23: =RTD("cqg.rtd", ,"ContractData",B23, "LongDescription",, "T") -> American Homes4Rent | B23: S.US.AMH
A24: =RTD("cqg.rtd", ,"ContractData",B24, "LongDescription",, "T") -> Ameriprise Financial Inc | B24: S.US.AMP
A25: =RTD("cqg.rtd", ,"ContractData",B25, "LongDescription",, "T") -> Amazon.com Inc | B25: S.US.AMZN
A26: =RTD("cqg.rtd", ,"ContractData",B26, "LongDescription",, "T") -> Arista Networks, Inc. | B26: S.US.ANET
A27: =RTD("cqg.rtd", ,"ContractData",B27, "LongDescription",, "T") -> Abercrombie & Fitch | B27: S.US.ANF
A28: =RTD("cqg.rtd", ,"ContractData",B28, "LongDescription",, "T") -> ANSYS Inc | B28: S.US.ANSS
A29: =RTD("cqg.rtd", ,"ContractData",B29, "LongDescription",, "T") -> AON Corporation | B29: S.US.AON
A30: =RTD("cqg.rtd", ,"ContractData",B30, "LongDescription",, "T") -> Amphenol | B30: S.US.APH
A31: =RTD("cqg.rtd", ,"ContractData",B31, "LongDescription",, "T") -> Apollo Global Management, LLC | B31: S.US.APO
A32: =RTD("cqg.rtd", ,"ContractData",B32, "LongDescription",, "T") -> AppFolio, Inc. | B32: S.US.APPF
A33: =RTD("cqg.rtd", ,"ContractData",B33, "LongDescription",, "T") -> AptarGroup Inc | B33: S.US.ATR
A34: =RTD("cqg.rtd", ,"ContractData",B34, "LongDescription",, "T") -> AvalonBay Communities, Inc. | B34: S.US.AVB
A35: =RTD("cqg.rtd", ,"ContractData",B35, "LongDescription",, "T") -> Broadcom Inc. | B35: S.US.AVGO
A36: =RTD("cqg.rtd", ,"ContractData",B36, "LongDescription",, "T") -> Axon Enterprise, Inc. | B36: S.US.AXON
A37: =RTD("cqg.rtd", ,"ContractData",B37, "LongDescription",, "T") -> American Express Co | B37: S.US.AXP
A38: =RTD("cqg.rtd", ,"ContractData",B38, "LongDescription",, "T") -> Axalta Coating Systems Ltd. | B38: S.US.AXTA
A39: =RTD("cqg.rtd", ,"ContractData",B39, "LongDescription",, "T") -> Acuity Brands Inc | B39: S.US.AYI
A40: =RTD("cqg.rtd", ,"ContractData",B40, "LongDescription",, "T") -> Autozone Inc | B40: S.US.AZO
A41: =RTD("cqg.rtd", ,"ContractData",B41, "LongDescription",, "T") -> Brinks Company | B41: S.US.BCO
A42: =RTD("cqg.rtd", ,"ContractData",B42, "LongDescription",, "T") -> Belden Inc. | B42: S.US.BDC
A43: =RTD("cqg.rtd", ,"ContractData",B43, "LongDescription",, "T") -> BJ's Wholesale Club Holdings, Inc. | B43: S.US.BJ
A44: =RTD("cqg.rtd", ,"ContractData",B44, "LongDescription",, "T") -> Bank of New York Co Inc | B44: S.US.BK
A45: =RTD("cqg.rtd", ,"ContractData",B45, "LongDescription",, "T") -> Booking Holdings Inc. | B45: S.US.BKNG
A46: =RTD("cqg.rtd", ,"ContractData",B46, "LongDescription",, "T") -> TopBuild Corp. | B46: S.US.BLD
A47: =RTD("cqg.rtd", ,"ContractData",B47, "LongDescription",, "T") -> Builders FirstSource Inc | B47: S.US.BLDR
A48: =RTD("cqg.rtd", ,"ContractData",B48, "LongDescription",, "T") -> Blackbaud Inc | B48: S.US.BLKB
A49: =RTD("cqg.rtd", ,"ContractData",B49, "LongDescription",, "T") -> Broadridge Financial Solutions | B49: S.US.BR
A50: =RTD("cqg.rtd", ,"ContractData",B50, "LongDescription",, "T") -> BellRing Brands, LLC | B50: S.US.BRBR
A51: =RTD("cqg.rtd", ,"ContractData",B51, "LongDescription",, "T") -> Berkshire Hathaway Inc. ClsB | B51: S.US.BRKB
A52: =RTD("cqg.rtd", ,"ContractData",B52, "LongDescription",, "T") -> Bruker Corp | B52: S.US.BRKR
A53: =RTD("cqg.rtd", ,"ContractData",B53, "LongDescription",, "T") -> BROWN AND BROWN INC | B53: S.US.BRO
A54: =RTD("cqg.rtd", ,"ContractData",B54, "LongDescription",, "T") -> Brixmor Property Group, Inc. | B54: S.US.BRX
A55: =RTD("cqg.rtd", ,"ContractData",B55, "LongDescription",, "T") -> Boston Scientific Corp | B55: S.US.BSX
A56: =RTD("cqg.rtd", ,"ContractData",B56, "LongDescription",, "T") -> Burlington Stores, Inc. | B56: S.US.BURL
A57: =RTD("cqg.rtd", ,"ContractData",B57, "LongDescription",, "T") -> BWX Technologies, Inc. | B57: S.US.BWXT
A58: =RTD("cqg.rtd", ,"ContractData",B58, "LongDescription",, "T") -> Boyd Gaming Corp | B58: S.US.BYD
A59: =RTD("cqg.rtd", ,"ContractData",B59, "LongDescription",, "T") -> CACI International | B59: S.US.CACI
A60: =RTD("cqg.rtd", ,"ContractData",B60, "LongDescription",, "T") -> Carrier Global Corporation | B60: S.US.CARR
A61: =RTD("cqg.rtd", ,"ContractData",B61, "LongDescription",, "T") -> Maplebear Inc. | B61: S.US.CART
A62: =RTD("cqg.rtd", ,"ContractData",B62, "LongDescription",, "T") -> Caseys General Stores Inc | B62: S.US.CASY
A63: =RTD("cqg.rtd", ,"ContractData",B63, "LongDescription",, "T") -> Caterpillar Inc | B63: S.US.CAT
A64: =RTD("cqg.rtd", ,"ContractData",B64, "LongDescription",, "T") -> CBRE Group, Inc. | B64: S.US.CBRE
A65: =RTD("cqg.rtd", ,"ContractData",B65, "LongDescription",, "T") -> Commerce Bancshares Inc | B65: S.US.CBSH
A66: =RTD("cqg.rtd", ,"ContractData",B66, "LongDescription",, "T") -> Cabot Corporation | B66: S.US.CBT
A67: =RTD("cqg.rtd", ,"ContractData",B67, "LongDescription",, "T") -> Carnival Corp | B67: S.US.CCL
A68: =RTD("cqg.rtd", ,"ContractData",B68, "LongDescription",, "T") -> Cadence Design Systems, Inc | B68: S.US.CDNS
A69: =RTD("cqg.rtd", ,"ContractData",B69, "LongDescription",, "T") -> COPT Defense Properties | B69: S.US.CDP
A70: =RTD("cqg.rtd", ,"ContractData",B70, "LongDescription",, "T") -> Constellation Energy Corporation | B70: S.US.CEG
A71: =RTD("cqg.rtd", ,"ContractData",B71, "LongDescription",, "T") -> Celsius Holdings, Inc. | B71: S.US.CELH
A72: =RTD("cqg.rtd", ,"ContractData",B72, "LongDescription",, "T") -> Cullen Frost Bankers Inc | B72: S.US.CFR
A73: =RTD("cqg.rtd", ,"ContractData",B73, "LongDescription",, "T") -> The Carlyle Group L.P. | B73: S.US.CG
A74: =RTD("cqg.rtd", ,"ContractData",B74, "LongDescription",, "T") -> Cognex Corp | B74: S.US.CGNX
A75: =RTD("cqg.rtd", ,"ContractData",B75, "LongDescription",, "T") -> Churchill Downs | B75: S.US.CHDN
A76: =RTD("cqg.rtd", ,"ContractData",B76, "LongDescription",, "T") -> Chemed Corp | B76: S.US.CHE
A77: =RTD("cqg.rtd", ,"ContractData",B77, "LongDescription",, "T") -> Choice Hotels Internatl Inc | B77: S.US.CHH
A78: =RTD("cqg.rtd", ,"ContractData",B78, "LongDescription",, "T") -> Chewy, Inc | B78: S.US.CHWY
A79: =RTD("cqg.rtd", ,"ContractData",B79, "LongDescription",, "T") -> ChampionX Corporation | B79: S.US.CHX
A80: =RTD("cqg.rtd", ,"ContractData",B80, "LongDescription",, "T") -> Ciena Corp | B80: S.US.CIEN
A81: =RTD("cqg.rtd", ,"ContractData",B81, "LongDescription",, "T") -> Cincinnati Fincl Corp | B81: S.US.CINF
A82: =RTD("cqg.rtd", ,"ContractData",B82, "LongDescription",, "T") -> Colgate-Palmolive Co | B82: S.US.CL
A83: =RTD("cqg.rtd", ,"ContractData",B83, "LongDescription",, "T") -> Clean Harbors, Inc. | B83: S.US.CLH
A84: =RTD("cqg.rtd", ,"ContractData",B84, "LongDescription",, "T") -> Chipotle Mexican Grill | B84: S.US.CMG
A85: =RTD("cqg.rtd", ,"ContractData",B85, "LongDescription",, "T") -> Cummins Inc | B85: S.US.CMI
A86: =RTD("cqg.rtd", ,"ContractData",B86, "LongDescription",, "T") -> Core & Main, Inc. | B86: S.US.CNM
A87: =RTD("cqg.rtd", ,"ContractData",B87, "LongDescription",, "T") -> CNX Resources Corporation | B87: S.US.CNX
A88: =RTD("cqg.rtd", ,"ContractData",B88, "LongDescription",, "T") -> Coherent Inc. | B88: S.US.COHR
A89: =RTD("cqg.rtd", ,"ContractData",B89, "LongDescription",, "T") -> Coca-Cola Consolidated, Inc. | B89: S.US.COKE
A90: =RTD("cqg.rtd", ,"ContractData",B90, "LongDescription",, "T") -> Costco Wholesale Corp | B90: S.US.COST
A91: =RTD("cqg.rtd", ,"ContractData",B91, "LongDescription",, "T") -> Corpay, Inc. | B91: S.US.CPAY
A92: =RTD("cqg.rtd", ,"ContractData",B92, "LongDescription",, "T") -> Copart Inc | B92: S.US.CPRT
A93: =RTD("cqg.rtd", ,"ContractData",B93, "LongDescription",, "T") -> Camden Property Trust | B93: S.US.CPT
A94: =RTD("cqg.rtd", ,"ContractData",B94, "LongDescription",, "T") -> Crane Holdings, Co. | B94: S.US.CR
A95: =RTD("cqg.rtd", ,"ContractData",B95, "LongDescription",, "T") -> Salesforce, Inc. | B95: S.US.CRM
A96: =RTD("cqg.rtd", ,"ContractData",B96, "LongDescription",, "T") -> Crocs Inc | B96: S.US.CROX
A97: =RTD("cqg.rtd", ,"ContractData",B97, "LongDescription",, "T") -> Carpenter Technology Corp | B97: S.US.CRS
A98: =RTD("cqg.rtd", ,"ContractData",B98, "LongDescription",, "T") -> Cirrus Logic Inc | B98: S.US.CRUS
A99: =RTD("cqg.rtd", ,"ContractData",B99, "LongDescription",, "T") -> CrowdStrike Holdings, Inc. Class A | B99: S.US.CRWD
A100: =RTD("cqg.rtd", ,"ContractData",B100, "LongDescription",, "T") -> Carlisle Cos Inc | B100: S.US.CSL
A101: =RTD("cqg.rtd", ,"ContractData",B101, "LongDescription",, "T") -> CSX Corporation | B101: S.US.CSX
A102: =RTD("cqg.rtd", ,"ContractData",B102, "LongDescription",, "T") -> Cintas Corp | B102: S.US.CTAS
A103: =RTD("cqg.rtd", ,"ContractData",B103, "LongDescription",, "T") -> Cubesmart | B103: S.US.CUBE
A104: =RTD("cqg.rtd", ,"ContractData",B104, "LongDescription",, "T") -> CommVault Systems Inc | B104: S.US.CVLT
A105: =RTD("cqg.rtd", ,"ContractData",B105, "LongDescription",, "T") -> Curtiss-Wright Corporation | B105: S.US.CW
A106: =RTD("cqg.rtd", ,"ContractData",B106, "LongDescription",, "T") -> Crane NXT, Co. | B106: S.US.CXT
A107: =RTD("cqg.rtd", ,"ContractData",B107, "LongDescription",, "T") -> Cytokinetics Inc | B107: S.US.CYTK
A108: =RTD("cqg.rtd", ,"ContractData",B108, "LongDescription",, "T") -> Delta Airlines, Inc. | B108: S.US.DAL
A109: =RTD("cqg.rtd", ,"ContractData",B109, "LongDescription",, "T") -> Dayforce Inc. | B109: S.US.DAY
A110: =RTD("cqg.rtd", ,"ContractData",B110, "LongDescription",, "T") -> Dropbox, Inc. Class A | B110: S.US.DBX
A111: =RTD("cqg.rtd", ,"ContractData",B111, "LongDescription",, "T") -> Donaldson Company Inc | B111: S.US.DCI
A112: =RTD("cqg.rtd", ,"ContractData",B112, "LongDescription",, "T") -> Deere & Company | B112: S.US.DE
A113: =RTD("cqg.rtd", ,"ContractData",B113, "LongDescription",, "T") -> Deckers Outdoor Corp | B113: S.US.DECK
A114: =RTD("cqg.rtd", ,"ContractData",B114, "LongDescription",, "T") -> Dell Technologies Inc. | B114: S.US.DELL
A115: =RTD("cqg.rtd", ,"ContractData",B115, "LongDescription",, "T") -> Discover Financial Services | B115: S.US.DFS
A116: =RTD("cqg.rtd", ,"ContractData",B116, "LongDescription",, "T") -> Dicks Sporting Goods Inc. | B116: S.US.DKS
A117: =RTD("cqg.rtd", ,"ContractData",B117, "LongDescription",, "T") -> Doximity, Inc. | B117: S.US.DOCS
A118: =RTD("cqg.rtd", ,"ContractData",B118, "LongDescription",, "T") -> DocuSign, Inc. | B118: S.US.DOCU
A119: =RTD("cqg.rtd", ,"ContractData",B119, "LongDescription",, "T") -> Dover Corporation | B119: S.US.DOV
A120: =RTD("cqg.rtd", ,"ContractData",B120, "LongDescription",, "T") -> Dominos Pizza, Inc. | B120: S.US.DPZ
A121: =RTD("cqg.rtd", ,"ContractData",B121, "LongDescription",, "T") -> Darden Restaurants Inc | B121: S.US.DRI
A122: =RTD("cqg.rtd", ,"ContractData",B122, "LongDescription",, "T") -> Dynatrace Holdings LLC | B122: S.US.DT
A123: =RTD("cqg.rtd", ,"ContractData",B123, "LongDescription",, "T") -> DT Midstream | B123: S.US.DTM
A124: =RTD("cqg.rtd", ,"ContractData",B124, "LongDescription",, "T") -> Duolingo, Inc. Class A | B124: S.US.DUOL
A125: =RTD("cqg.rtd", ,"ContractData",B125, "LongDescription",, "T") -> DaVita Inc. | B125: S.US.DVA
A126: =RTD("cqg.rtd", ,"ContractData",B126, "LongDescription",, "T") -> DexCom Inc | B126: S.US.DXCM
A127: =RTD("cqg.rtd", ,"ContractData",B127, "LongDescription",, "T") -> Electronic Arts | B127: S.US.EA
A128: =RTD("cqg.rtd", ,"ContractData",B128, "LongDescription",, "T") -> eBay Inc | B128: S.US.EBAY
A129: =RTD("cqg.rtd", ,"ContractData",B129, "LongDescription",, "T") -> Ecolab Inc | B129: S.US.ECL
A130: =RTD("cqg.rtd", ,"ContractData",B130, "LongDescription",, "T") -> Euronet Worldwide Inc | B130: S.US.EEFT
A131: =RTD("cqg.rtd", ,"ContractData",B131, "LongDescription",, "T") -> Eastgroup Properites Inc | B131: S.US.EGP
A132: =RTD("cqg.rtd", ,"ContractData",B132, "LongDescription",, "T") -> Encompass Health Corporation | B132: S.US.EHC
A133: =RTD("cqg.rtd", ,"ContractData",B133, "LongDescription",, "T") -> e.l.f. Beauty, Inc. | B133: S.US.ELF
A134: =RTD("cqg.rtd", ,"ContractData",B134, "LongDescription",, "T") -> Equity Lifestyle Property Inc | B134: S.US.ELS
A135: =RTD("cqg.rtd", ,"ContractData",B135, "LongDescription",, "T") -> EMCOR Group | B135: S.US.EME
A136: =RTD("cqg.rtd", ,"ContractData",B136, "LongDescription",, "T") -> Emerson Electric Co | B136: S.US.EMR
A137: =RTD("cqg.rtd", ,"ContractData",B137, "LongDescription",, "T") -> The Ensign Group, Inc. | B137: S.US.ENSG
A138: =RTD("cqg.rtd", ,"ContractData",B138, "LongDescription",, "T") -> Entegris Inc | B138: S.US.ENTG
A139: =RTD("cqg.rtd", ,"ContractData",B139, "LongDescription",, "T") -> Equitable Holdings, Inc. | B139: S.US.EQH
A140: =RTD("cqg.rtd", ,"ContractData",B140, "LongDescription",, "T") -> Equinix Inc | B140: S.US.EQIX
A141: =RTD("cqg.rtd", ,"ContractData",B141, "LongDescription",, "T") -> Erie Indemnity Co | B141: S.US.ERIE
A142: =RTD("cqg.rtd", ,"ContractData",B142, "LongDescription",, "T") -> ESAB Corporation | B142: S.US.ESAB
A143: =RTD("cqg.rtd", ,"ContractData",B143, "LongDescription",, "T") -> Essex Property Trust Inc | B143: S.US.ESS
A144: =RTD("cqg.rtd", ,"ContractData",B144, "LongDescription",, "T") -> Eaton Corporation | B144: S.US.ETN
A145: =RTD("cqg.rtd", ,"ContractData",B145, "LongDescription",, "T") -> Evercore Inc. | B145: S.US.EVR
A146: =RTD("cqg.rtd", ,"ContractData",B146, "LongDescription",, "T") -> East West Bancorp | B146: S.US.EWBC
A147: =RTD("cqg.rtd", ,"ContractData",B147, "LongDescription",, "T") -> Exelixis, Inc. | B147: S.US.EXEL
A148: =RTD("cqg.rtd", ,"ContractData",B148, "LongDescription",, "T") -> Exlservice Holdings Inc | B148: S.US.EXLS
A149: =RTD("cqg.rtd", ,"ContractData",B149, "LongDescription",, "T") -> Eagle Materials Inc | B149: S.US.EXP
A150: =RTD("cqg.rtd", ,"ContractData",B150, "LongDescription",, "T") -> Expedia Group, Inc. | B150: S.US.EXPE
A151: =RTD("cqg.rtd", ,"ContractData",B151, "LongDescription",, "T") -> Exponent | B151: S.US.EXPO
A152: =RTD("cqg.rtd", ,"ContractData",B152, "LongDescription",, "T") -> Extra Space Storage Inc | B152: S.US.EXR
A153: =RTD("cqg.rtd", ,"ContractData",B153, "LongDescription",, "T") -> Fastenal Co | B153: S.US.FAST
A154: =RTD("cqg.rtd", ,"ContractData",B154, "LongDescription",, "T") -> FirstCash, Inc. | B154: S.US.FCFS
A155: =RTD("cqg.rtd", ,"ContractData",B155, "LongDescription",, "T") -> Factet Research | B155: S.US.FDS
A156: =RTD("cqg.rtd", ,"ContractData",B156, "LongDescription",, "T") -> First Financial Bankshares Inc | B156: S.US.FFIN
A157: =RTD("cqg.rtd", ,"ContractData",B157, "LongDescription",, "T") -> F5, Inc. | B157: S.US.FFIV
A158: =RTD("cqg.rtd", ,"ContractData",B158, "LongDescription",, "T") -> Federated Hermes, Inc. | B158: S.US.FHI
A159: =RTD("cqg.rtd", ,"ContractData",B159, "LongDescription",, "T") -> Fiserv, Inc. | B159: S.US.FI
A160: =RTD("cqg.rtd", ,"ContractData",B160, "LongDescription",, "T") -> Fair Isaac Inc | B160: S.US.FICO
A161: =RTD("cqg.rtd", ,"ContractData",B161, "LongDescription",, "T") -> Comfort Systems USA Inc | B161: S.US.FIX
A162: =RTD("cqg.rtd", ,"ContractData",B162, "LongDescription",, "T") -> Flowserve Corp | B162: S.US.FLS
A163: =RTD("cqg.rtd", ,"ContractData",B163, "LongDescription",, "T") -> Fabrinet | B163: S.US.FN
A164: =RTD("cqg.rtd", ,"ContractData",B164, "LongDescription",, "T") -> Floor And Decor Holdings, Inc. | B164: S.US.FND
A165: =RTD("cqg.rtd", ,"ContractData",B165, "LongDescription",, "T") -> Shift4 Payments, Inc | B165: S.US.FOUR
A166: =RTD("cqg.rtd", ,"ContractData",B166, "LongDescription",, "T") -> First Industrial Reality Trust Inc | B166: S.US.FR
A167: =RTD("cqg.rtd", ,"ContractData",B167, "LongDescription",, "T") -> First Solar, Inc | B167: S.US.FSLR
A168: =RTD("cqg.rtd", ,"ContractData",B168, "LongDescription",, "T") -> Fortinet, Inc. | B168: S.US.FTNT
A169: =RTD("cqg.rtd", ,"ContractData",B169, "LongDescription",, "T") -> Genpact Limited | B169: S.US.G
A170: =RTD("cqg.rtd", ,"ContractData",B170, "LongDescription",, "T") -> GATX Corporation | B170: S.US.GATX
A171: =RTD("cqg.rtd", ,"ContractData",B171, "LongDescription",, "T") -> Glacier Bancorp Inc | B171: S.US.GBCI
A172: =RTD("cqg.rtd", ,"ContractData",B172, "LongDescription",, "T") -> GoDaddy Inc. | B172: S.US.GDDY
A173: =RTD("cqg.rtd", ,"ContractData",B173, "LongDescription",, "T") -> General Electric Co | B173: S.US.GE
A174: =RTD("cqg.rtd", ,"ContractData",B174, "LongDescription",, "T") -> Gen Digital Inc. | B174: S.US.GEN
A175: =RTD("cqg.rtd", ,"ContractData",B175, "LongDescription",, "T") -> GE Vernova Inc. | B175: S.US.GEV
A176: =RTD("cqg.rtd", ,"ContractData",B176, "LongDescription",, "T") -> Graco Inc | B176: S.US.GGG
A177: =RTD("cqg.rtd", ,"ContractData",B177, "LongDescription",, "T") -> Gaming and Leisure Properties, Inc. | B177: S.US.GLPI
A178: =RTD("cqg.rtd", ,"ContractData",B178, "LongDescription",, "T") -> Gamestop Corporation | B178: S.US.GME
A179: =RTD("cqg.rtd", ,"ContractData",B179, "LongDescription",, "T") -> Globus Medical, Inc. | B179: S.US.GMED
A180: =RTD("cqg.rtd", ,"ContractData",B180, "LongDescription",, "T") -> Generac Holdings Inc. | B180: S.US.GNRC
A181: =RTD("cqg.rtd", ,"ContractData",B181, "LongDescription",, "T") -> Gentex Corporation | B181: S.US.GNTX
A182: =RTD("cqg.rtd", ,"ContractData",B182, "LongDescription",, "T") -> Alphabet, Inc. Class C | B182: S.US.GOOG
A183: =RTD("cqg.rtd", ,"ContractData",B183, "LongDescription",, "T") -> Alphabet, Inc. Class A | B183: S.US.GOOGL
A184: =RTD("cqg.rtd", ,"ContractData",B184, "LongDescription",, "T") -> Graphic Packaging Holding Company | B184: S.US.GPK
A185: =RTD("cqg.rtd", ,"ContractData",B185, "LongDescription",, "T") -> Garmin Ltd | B185: S.US.GRMN
A186: =RTD("cqg.rtd", ,"ContractData",B186, "LongDescription",, "T") -> Chart Industries, Inc | B186: S.US.GTLS
A187: =RTD("cqg.rtd", ,"ContractData",B187, "LongDescription",, "T") -> Guidewire Software, Inc. | B187: S.US.GWRE
A188: =RTD("cqg.rtd", ,"ContractData",B188, "LongDescription",, "T") -> Grainger (WW) Inc | B188: S.US.GWW
A189: =RTD("cqg.rtd", ,"ContractData",B189, "LongDescription",, "T") -> Hyatt Hotels | B189: S.US.H
A190: =RTD("cqg.rtd", ,"ContractData",B190, "LongDescription",, "T") -> Haemonetics Corp | B190: S.US.HAE
A191: =RTD("cqg.rtd", ,"ContractData",B191, "LongDescription",, "T") -> Halozyme Therapeutics | B191: S.US.HALO
A192: =RTD("cqg.rtd", ,"ContractData",B192, "LongDescription",, "T") -> HCA Holdings Inc. | B192: S.US.HCA
A193: =RTD("cqg.rtd", ,"ContractData",B193, "LongDescription",, "T") -> Home Depot, Inc. | B193: S.US.HD
A194: =RTD("cqg.rtd", ,"ContractData",B194, "LongDescription",, "T") -> Hess Corporation | B194: S.US.HES
A195: =RTD("cqg.rtd", ,"ContractData",B195, "LongDescription",, "T") -> Hilton Grand Vacations Inc. | B195: S.US.HGV
A196: =RTD("cqg.rtd", ,"ContractData",B196, "LongDescription",, "T") -> The Hartford Insurance Group, Inc. | B196: S.US.HIG
A197: =RTD("cqg.rtd", ,"ContractData",B197, "LongDescription",, "T") -> Houlihan Lokey, Inc. | B197: S.US.HLI
A198: =RTD("cqg.rtd", ,"ContractData",B198, "LongDescription",, "T") -> Hamilton Lane Incorporated Class A | B198: S.US.HLNE
A199: =RTD("cqg.rtd", ,"ContractData",B199, "LongDescription",, "T") -> Hilton Inc. | B199: S.US.HLT
A200: =RTD("cqg.rtd", ,"ContractData",B200, "LongDescription",, "T") -> Home BancShares Inc | B200: S.US.HOMB
... 247 more rows

Sheet IUSG (hidden)
B1: =IF(D1>=0,1,) -> 1 | C1: S.US.AAL | D1: =IFERROR(RTD("cqg.rtd", ,"ContractData",C1, "PerCentNetLastTrade",, "T")/100,"") ->  | E1: =IFERROR(RANK($D1,$D$1:D$447)+COUNTIF($D$1:D1,D1)-1,0) -> 0 | F1: =IFERROR(E1,"") -> 0 | G1: =C1 -> S.US.AAL | H1: 1 | I1: =IFERROR(VLOOKUP(H1,$F$1:$G$447,2,FALSE),"") ->  | J1: =IFERROR(RTD("cqg.rtd", ,"ContractData",I1, "PerCentNetLastTrade",, "T")/100,"") ->  | L1: =MIN(D1:D447) -> 0 | M1: =IFERROR(VLOOKUP(L1,D1:G447,3,FALSE),"") ->  | N1: =IFERROR(VLOOKUP(M1,$H$1:$I$564,2,FALSE),"") ->  | O1: =IFERROR(RTD("cqg.rtd", ,"ContractData",N1, "PerCentNetLastTrade",, "T")/100,"") ->  | Q1: =IFERROR("https://finance.yahoo.com/quote/"&RIGHT(I1,(LEN(I1)-5)),"") ->  | S1: =RTD("cqg.rtd", ,"ContractData",I1, "LongDescription",, "T") -> Obligatory parameter <contract>(position - 1) is not specified | V1: =IFERROR(N15,"") ->  | W1: =RTD("cqg.rtd", ,"ContractData",V1, "LongDescription",, "T") -> Obligatory parameter <contract>(position - 1) is not specified | Z1: =IFERROR(RTD("cqg.rtd", ,"ContractData",V1, "PerCentNetLastTrade",, "T")/100,"") ->  | AA1: =IFERROR(Z1*-1,"") ->  | AB1: =IFERROR("https://finance.yahoo.com/quote/"&RIGHT(V1,(LEN(V1)-5)),"") -> 
B2: =IF(D2>=0,1,) -> 1 | C2: S.US.AAON | D2: =IFERROR(RTD("cqg.rtd", ,"ContractData",C2, "PerCentNetLastTrade",, "T")/100,"") ->  | E2: =IFERROR(RANK($D2,$D$1:D$447)+COUNTIF($D$1:D2,D2)-1,0) -> 0 | F2: =IFERROR(E2,"") -> 0 | G2: =C2 -> S.US.AAON | H2: =H1+1 -> 2 | I2: =IFERROR(VLOOKUP(H2,$F$1:$G$447,2,FALSE),"") ->  | J2: =IFERROR(RTD("cqg.rtd", ,"ContractData",I2, "PerCentNetLastTrade",, "T")/100,"") ->  | M2: =M1-1 ->  | N2: =IFERROR(VLOOKUP(M2,$H$1:$I$564,2,FALSE),"") ->  | O2: =IFERROR(RTD("cqg.rtd", ,"ContractData",N2, "PerCentNetLastTrade",, "T")/100,"") ->  | Q2: =IFERROR("https://finance.yahoo.com/quote/"&RIGHT(I2,(LEN(I2)-5)),"") ->  | S2: =RTD("cqg.rtd", ,"ContractData",I2, "LongDescription",, "T") -> Obligatory parameter <contract>(position - 1) is not specified | V2: =N14 ->  | W2: =RTD("cqg.rtd", ,"ContractData",V2, "LongDescription",, "T") -> Obligatory parameter <contract>(position - 1) is not specified | Z2: =IFERROR(RTD("cqg.rtd", ,"ContractData",V2, "PerCentNetLastTrade",, "T")/100,"") ->  | AA2: =IFERROR(Z2*-1,"") ->  | AB2: =IFERROR("https://finance.yahoo.com/quote/"&RIGHT(V2,(LEN(V2)-5)),"") -> 
B3: 1 | C3: S.US.AAPL | D3: =IFERROR(RTD("cqg.rtd", ,"ContractData",C3, "PerCentNetLastTrade",, "T")/100,"") ->  | E3: =IFERROR(RANK($D3,$D$1:D$447)+COUNTIF($D$1:D3,D3)-1,0) -> 0 | F3: 0 | G3: S.US.AAPL | H3: =H2+1 -> 3 | J3: =IFERROR(RTD("cqg.rtd", ,"ContractData",I3, "PerCentNetLastTrade",, "T")/100,"") ->  | M3: =M2-1 ->  | O3: =IFERROR(RTD("cqg.rtd", ,"ContractData",N3, "PerCentNetLastTrade",, "T")/100,"") ->  | S3: =RTD("cqg.rtd", ,"ContractData",I3, "LongDescription",, "T") -> Obligatory parameter <contract>(position - 1) is not specified | V3: =N13 ->  | W3: =RTD("cqg.rtd", ,"ContractData",V3, "LongDescription",, "T") -> Obligatory parameter <contract>(position - 1) is not specified | Z3: =IFERROR(RTD("cqg.rtd", ,"ContractData",V3, "PerCentNetLastTrade",, "T")/100,"") -> 
B4: 1 | C4: S.US.ABBV | D4: =IFERROR(RTD("cqg.rtd", ,"ContractData",C4, "PerCentNetLastTrade",, "T")/100,"") ->  | E4: =IFERROR(RANK($D4,$D$1:D$447)+COUNTIF($D$1:D4,D4)-1,0) -> 0 | F4: 0 | G4: S.US.ABBV | H4: 4 | J4: =IFERROR(RTD("cqg.rtd", ,"ContractData",I4, "PerCentNetLastTrade",, "T")/100,"") ->  | O4: =IFERROR(RTD("cqg.rtd", ,"ContractData",N4, "PerCentNetLastTrade",, "T")/100,"") ->  | S4: =RTD("cqg.rtd", ,"ContractData",I4, "LongDescription",, "T") -> Obligatory parameter <contract>(position - 1) is not specified | V4: =N12 ->  | W4: =RTD("cqg.rtd", ,"ContractData",V4, "LongDescription",, "T") -> Obligatory parameter <contract>(position - 1) is not specified | Z4: =IFERROR(RTD("cqg.rtd", ,"ContractData",V4, "PerCentNetLastTrade",, "T")/100,"") -> 
B5: 1 | C5: S.US.ABNB | D5: =IFERROR(RTD("cqg.rtd", ,"ContractData",C5, "PerCentNetLastTrade",, "T")/100,"") ->  | E5: =IFERROR(RANK($D5,$D$1:D$447)+COUNTIF($D$1:D5,D5)-1,0) -> 0 | F5: 0 | G5: S.US.ABNB | H5: 5 | J5: =IFERROR(RTD("cqg.rtd", ,"ContractData",I5, "PerCentNetLastTrade",, "T")/100,"") ->  | O5: =IFERROR(RTD("cqg.rtd", ,"ContractData",N5, "PerCentNetLastTrade",, "T")/100,"") ->  | S5: =RTD("cqg.rtd", ,"ContractData",I5, "LongDescription",, "T") -> Obligatory parameter <contract>(position - 1) is not specified | V5: =N11 ->  | W5: =RTD("cqg.rtd", ,"ContractData",V5, "LongDescription",, "T") -> Obligatory parameter <contract>(position - 1) is not specified | Z5: =IFERROR(RTD("cqg.rtd", ,"ContractData",V5, "PerCentNetLastTrade",, "T")/100,"") -> 
B6: 1 | C6: S.US.ACGL | D6: =IFERROR(RTD("cqg.rtd", ,"ContractData",C6, "PerCentNetLastTrade",, "T")/100,"") ->  | E6: =IFERROR(RANK($D6,$D$1:D$447)+COUNTIF($D$1:D6,D6)-1,0) -> 0 | F6: 0 | G6: S.US.ACGL | H6: 6 | J6: =IFERROR(RTD("cqg.rtd", ,"ContractData",I6, "PerCentNetLastTrade",, "T")/100,"") ->  | O6: =IFERROR(RTD("cqg.rtd", ,"ContractData",N6, "PerCentNetLastTrade",, "T")/100,"") ->  | S6: =RTD("cqg.rtd", ,"ContractData",I6, "LongDescription",, "T") -> Obligatory parameter <contract>(position - 1) is not specified | V6: =N10 ->  | W6: =RTD("cqg.rtd", ,"ContractData",V6, "LongDescription",, "T") -> Obligatory parameter <contract>(position - 1) is not specified | Z6: =IFERROR(RTD("cqg.rtd", ,"ContractData",V6, "PerCentNetLastTrade",, "T")/100,"") -> 
B7: 1 | C7: S.US.ACM | D7: =IFERROR(RTD("cqg.rtd", ,"ContractData",C7, "PerCentNetLastTrade",, "T")/100,"") ->  | E7: =IFERROR(RANK($D7,$D$1:D$447)+COUNTIF($D$1:D7,D7)-1,0) -> 0 | F7: 0 | G7: S.US.ACM | H7: 7 | J7: =IFERROR(RTD("cqg.rtd", ,"ContractData",I7, "PerCentNetLastTrade",, "T")/100,"") ->  | O7: =IFERROR(RTD("cqg.rtd", ,"ContractData",N7, "PerCentNetLastTrade",, "T")/100,"") ->  | S7: =RTD("cqg.rtd", ,"ContractData",I7, "LongDescription",, "T") -> Obligatory parameter <contract>(position - 1) is not specified | V7: =N9 ->  | W7: =RTD("cqg.rtd", ,"ContractData",V7, "LongDescription",, "T") -> Obligatory parameter <contract>(position - 1) is not specified | Z7: =IFERROR(RTD("cqg.rtd", ,"ContractData",V7, "PerCentNetLastTrade",, "T")/100,"") -> 
B8: 1 | C8: S.US.ADBE | D8: =IFERROR(RTD("cqg.rtd", ,"ContractData",C8, "PerCentNetLastTrade",, "T")/100,"") ->  | E8: =IFERROR(RANK($D8,$D$1:D$447)+COUNTIF($D$1:D8,D8)-1,0) -> 0 | F8: 0 | G8: S.US.ADBE | H8: 8 | J8: =IFERROR(RTD("cqg.rtd", ,"ContractData",I8, "PerCentNetLastTrade",, "T")/100,"") ->  | O8: =IFERROR(RTD("cqg.rtd", ,"ContractData",N8, "PerCentNetLastTrade",, "T")/100,"") ->  | S8: =RTD("cqg.rtd", ,"ContractData",I8, "LongDescription",, "T") -> Obligatory parameter <contract>(position - 1) is not specified | V8: =N8 ->  | W8: =RTD("cqg.rtd", ,"ContractData",V8, "LongDescription",, "T") -> Obligatory parameter <contract>(position - 1) is not specified | Z8: =IFERROR(RTD("cqg.rtd", ,"ContractData",V8, "PerCentNetLastTrade",, "T")/100,"") -> 
B9: 1 | C9: S.US.ADC | D9: =IFERROR(RTD("cqg.rtd", ,"ContractData",C9, "PerCentNetLastTrade",, "T")/100,"") ->  | E9: =IFERROR(RANK($D9,$D$1:D$447)+COUNTIF($D$1:D9,D9)-1,0) -> 0 | F9: 0 | G9: S.US.ADC | H9: 9 | J9: =IFERROR(RTD("cqg.rtd", ,"ContractData",I9, "PerCentNetLastTrade",, "T")/100,"") ->  | O9: =IFERROR(RTD("cqg.rtd", ,"ContractData",N9, "PerCentNetLastTrade",, "T")/100,"") ->  | S9: =RTD("cqg.rtd", ,"ContractData",I9, "LongDescription",, "T") -> Obligatory parameter <contract>(position - 1) is not specified | V9: =N7 ->  | W9: =RTD("cqg.rtd", ,"ContractData",V9, "LongDescription",, "T") -> Obligatory parameter <contract>(position - 1) is not specified | Z9: =IFERROR(RTD("cqg.rtd", ,"ContractData",V9, "PerCentNetLastTrade",, "T")/100,"") -> 
B10: 1 | C10: S.US.ADP | D10: =IFERROR(RTD("cqg.rtd", ,"ContractData",C10, "PerCentNetLastTrade",, "T")/100,"") ->  | E10: =IFERROR(RANK($D10,$D$1:D$447)+COUNTIF($D$1:D10,D10)-1,0) -> 0 | F10: 0 | G10: S.US.ADP | H10: 10 | J10: =IFERROR(RTD("cqg.rtd", ,"ContractData",I10, "PerCentNetLastTrade",, "T")/100,"") ->  | O10: =IFERROR(RTD("cqg.rtd", ,"ContractData",N10, "PerCentNetLastTrade",, "T")/100,"") ->  | S10: =RTD("cqg.rtd", ,"ContractData",I10, "LongDescription",, "T") -> Obligatory parameter <contract>(position - 1) is not specified | V10: =N6 ->  | W10: =RTD("cqg.rtd", ,"ContractData",V10, "LongDescription",, "T") -> Obligatory parameter <contract>(position - 1) is not specified | Z10: =IFERROR(RTD("cqg.rtd", ,"ContractData",V10, "PerCentNetLastTrade",, "T")/100,"") -> 
B11: 1 | C11: S.US.ADSK | D11: =IFERROR(RTD("cqg.rtd", ,"ContractData",C11, "PerCentNetLastTrade",, "T")/100,"") ->  | E11: =IFERROR(RANK($D11,$D$1:D$447)+COUNTIF($D$1:D11,D11)-1,0) -> 0 | F11: 0 | G11: S.US.ADSK | H11: 11 | J11: =IFERROR(RTD("cqg.rtd", ,"ContractData",I11, "PerCentNetLastTrade",, "T")/100,"") ->  | O11: =IFERROR(RTD("cqg.rtd", ,"ContractData",N11, "PerCentNetLastTrade",, "T")/100,"") ->  | S11: =RTD("cqg.rtd", ,"ContractData",I11, "LongDescription",, "T") -> Obligatory parameter <contract>(position - 1) is not specified | V11: =N5 ->  | W11: =RTD("cqg.rtd", ,"ContractData",V11, "LongDescription",, "T") -> Obligatory parameter <contract>(position - 1) is not specified | Z11: =IFERROR(RTD("cqg.rtd", ,"ContractData",V11, "PerCentNetLastTrade",, "T")/100,"") -> 
B12: 1 | C12: S.US.AFG | D12: =IFERROR(RTD("cqg.rtd", ,"ContractData",C12, "PerCentNetLastTrade",, "T")/100,"") ->  | E12: =IFERROR(RANK($D12,$D$1:D$447)+COUNTIF($D$1:D12,D12)-1,0) -> 0 | F12: 0 | G12: S.US.AFG | H12: 12 | J12: =IFERROR(RTD("cqg.rtd", ,"ContractData",I12, "PerCentNetLastTrade",, "T")/100,"") ->  | O12: =IFERROR(RTD("cqg.rtd", ,"ContractData",N12, "PerCentNetLastTrade",, "T")/100,"") ->  | S12: =RTD("cqg.rtd", ,"ContractData",I12, "LongDescription",, "T") -> Obligatory parameter <contract>(position - 1) is not specified | V12: =N4 ->  | W12: =RTD("cqg.rtd", ,"ContractData",V12, "LongDescription",, "T") -> Obligatory parameter <contract>(position - 1) is not specified | Z12: =IFERROR(RTD("cqg.rtd", ,"ContractData",V12, "PerCentNetLastTrade",, "T")/100,"") -> 
B13: 1 | C13: S.US.AIT | D13: =IFERROR(RTD("cqg.rtd", ,"ContractData",C13, "PerCentNetLastTrade",, "T")/100,"") ->  | E13: =IFERROR(RANK($D13,$D$1:D$447)+COUNTIF($D$1:D13,D13)-1,0) -> 0 | F13: 0 | G13: S.US.AIT | H13: 13 | J13: =IFERROR(RTD("cqg.rtd", ,"ContractData",I13, "PerCentNetLastTrade",, "T")/100,"") ->  | O13: =IFERROR(RTD("cqg.rtd", ,"ContractData",N13, "PerCentNetLastTrade",, "T")/100,"") ->  | S13: =RTD("cqg.rtd", ,"ContractData",I13, "LongDescription",, "T") -> Obligatory parameter <contract>(position - 1) is not specified | V13: =N3 ->  | W13: =RTD("cqg.rtd", ,"ContractData",V13, "LongDescription",, "T") -> Obligatory parameter <contract>(position - 1) is not specified | Z13: =IFERROR(RTD("cqg.rtd", ,"ContractData",V13, "PerCentNetLastTrade",, "T")/100,"") -> 
B14: 1 | C14: S.US.AJG | D14: =IFERROR(RTD("cqg.rtd", ,"ContractData",C14, "PerCentNetLastTrade",, "T")/100,"") ->  | E14: =IFERROR(RANK($D14,$D$1:D$447)+COUNTIF($D$1:D14,D14)-1,0) -> 0 | F14: 0 | G14: S.US.AJG | H14: 14 | J14: =IFERROR(RTD("cqg.rtd", ,"ContractData",I14, "PerCentNetLastTrade",, "T")/100,"") ->  | O14: =IFERROR(RTD("cqg.rtd", ,"ContractData",N14, "PerCentNetLastTrade",, "T")/100,"") ->  | S14: =RTD("cqg.rtd", ,"ContractData",I14, "LongDescription",, "T") -> Obligatory parameter <contract>(position - 1) is not specified | V14: =N2 ->  | W14: =RTD("cqg.rtd", ,"ContractData",V14, "LongDescription",, "T") -> Obligatory parameter <contract>(position - 1) is not specified | Z14: =IFERROR(RTD("cqg.rtd", ,"ContractData",V14, "PerCentNetLastTrade",, "T")/100,"") -> 
B15: 1 | C15: S.US.ALGM | D15: =IFERROR(RTD("cqg.rtd", ,"ContractData",C15, "PerCentNetLastTrade",, "T")/100,"") ->  | E15: =IFERROR(RANK($D15,$D$1:D$447)+COUNTIF($D$1:D15,D15)-1,0) -> 0 | F15: 0 | G15: S.US.ALGM | H15: 15 | J15: =IFERROR(RTD("cqg.rtd", ,"ContractData",I15, "PerCentNetLastTrade",, "T")/100,"") ->  | O15: =IFERROR(RTD("cqg.rtd", ,"ContractData",N15, "PerCentNetLastTrade",, "T")/100,"") ->  | S15: =RTD("cqg.rtd", ,"ContractData",I15, "LongDescription",, "T") -> Obligatory parameter <contract>(position - 1) is not specified | V15: =N1 ->  | W15: =RTD("cqg.rtd", ,"ContractData",V15, "LongDescription",, "T") -> Obligatory parameter <contract>(position - 1) is not specified | Z15: =IFERROR(RTD("cqg.rtd", ,"ContractData",V15, "PerCentNetLastTrade",, "T")/100,"") -> 
B16: 1 | C16: S.US.ALLE | D16: =IFERROR(RTD("cqg.rtd", ,"ContractData",C16, "PerCentNetLastTrade",, "T")/100,"") ->  | E16: =IFERROR(RANK($D16,$D$1:D$447)+COUNTIF($D$1:D16,D16)-1,0) -> 0 | F16: 0 | G16: S.US.ALLE | H16: 16
B17: 1 | C17: S.US.ALTR | D17: =IFERROR(RTD("cqg.rtd", ,"ContractData",C17, "PerCentNetLastTrade",, "T")/100,"") ->  | E17: =IFERROR(RANK($D17,$D$1:D$447)+COUNTIF($D$1:D17,D17)-1,0) -> 0 | F17: 0 | G17: S.US.ALTR | H17: 17
B18: 1 | C18: S.US.AM | D18: =IFERROR(RTD("cqg.rtd", ,"ContractData",C18, "PerCentNetLastTrade",, "T")/100,"") ->  | E18: =IFERROR(RANK($D18,$D$1:D$447)+COUNTIF($D$1:D18,D18)-1,0) -> 0 | F18: 0 | G18: S.US.AM | H18: 18
B19: 1 | C19: S.US.AMAT | D19: =IFERROR(RTD("cqg.rtd", ,"ContractData",C19, "PerCentNetLastTrade",, "T")/100,"") ->  | E19: =IFERROR(RANK($D19,$D$1:D$447)+COUNTIF($D$1:D19,D19)-1,0) -> 0 | F19: 0 | G19: S.US.AMAT | H19: 19
B20: 1 | C20: S.US.AME | D20: =IFERROR(RTD("cqg.rtd", ,"ContractData",C20, "PerCentNetLastTrade",, "T")/100,"") ->  | E20: =IFERROR(RANK($D20,$D$1:D$447)+COUNTIF($D$1:D20,D20)-1,0) -> 0 | F20: 0 | G20: S.US.AME | H20: 20
B21: 1 | C21: S.US.AMG | D21: =IFERROR(RTD("cqg.rtd", ,"ContractData",C21, "PerCentNetLastTrade",, "T")/100,"") ->  | E21: =IFERROR(RANK($D21,$D$1:D$447)+COUNTIF($D$1:D21,D21)-1,0) -> 0 | F21: 0 | G21: S.US.AMG | H21: 21
B22: 1 | C22: S.US.AMGN | D22: =IFERROR(RTD("cqg.rtd", ,"ContractData",C22, "PerCentNetLastTrade",, "T")/100,"") ->  | E22: =IFERROR(RANK($D22,$D$1:D$447)+COUNTIF($D$1:D22,D22)-1,0) -> 0 | F22: 0 | G22: S.US.AMGN | H22: 22
B23: 1 | C23: S.US.AMH | D23: =IFERROR(RTD("cqg.rtd", ,"ContractData",C23, "PerCentNetLastTrade",, "T")/100,"") ->  | E23: =IFERROR(RANK($D23,$D$1:D$447)+COUNTIF($D$1:D23,D23)-1,0) -> 0 | F23: 0 | G23: S.US.AMH | H23: 23
B24: 1 | C24: S.US.AMP | D24: =IFERROR(RTD("cqg.rtd", ,"ContractData",C24, "PerCentNetLastTrade",, "T")/100,"") ->  | E24: =IFERROR(RANK($D24,$D$1:D$447)+COUNTIF($D$1:D24,D24)-1,0) -> 0 | F24: 0 | G24: S.US.AMP | H24: 24
B25: 1 | C25: S.US.AMZN | D25: =IFERROR(RTD("cqg.rtd", ,"ContractData",C25, "PerCentNetLastTrade",, "T")/100,"") ->  | E25: =IFERROR(RANK($D25,$D$1:D$447)+COUNTIF($D$1:D25,D25)-1,0) -> 0 | F25: 0 | G25: S.US.AMZN | H25: 25
B26: 1 | C26: S.US.ANET | D26: =IFERROR(RTD("cqg.rtd", ,"ContractData",C26, "PerCentNetLastTrade",, "T")/100,"") ->  | E26: =IFERROR(RANK($D26,$D$1:D$447)+COUNTIF($D$1:D26,D26)-1,0) -> 0 | F26: 0 | G26: S.US.ANET | H26: 26
B27: 1 | C27: S.US.ANF | D27: =IFERROR(RTD("cqg.rtd", ,"ContractData",C27, "PerCentNetLastTrade",, "T")/100,"") ->  | E27: =IFERROR(RANK($D27,$D$1:D$447)+COUNTIF($D$1:D27,D27)-1,0) -> 0 | F27: 0 | G27: S.US.ANF | H27: 27
B28: 1 | C28: S.US.ANSS | D28: =IFERROR(RTD("cqg.rtd", ,"ContractData",C28, "PerCentNetLastTrade",, "T")/100,"") ->  | E28: =IFERROR(RANK($D28,$D$1:D$447)+COUNTIF($D$1:D28,D28)-1,0) -> 0 | F28: 0 | G28: S.US.ANSS | H28: 28
B29: 1 | C29: S.US.AON | D29: =IFERROR(RTD("cqg.rtd", ,"ContractData",C29, "PerCentNetLastTrade",, "T")/100,"") ->  | E29: =IFERROR(RANK($D29,$D$1:D$447)+COUNTIF($D$1:D29,D29)-1,0) -> 0 | F29: 0 | G29: S.US.AON | H29: 29
B30: 1 | C30: S.US.APH | D30: =IFERROR(RTD("cqg.rtd", ,"ContractData",C30, "PerCentNetLastTrade",, "T")/100,"") ->  | E30: =IFERROR(RANK($D30,$D$1:D$447)+COUNTIF($D$1:D30,D30)-1,0) -> 0 | F30: 0 | G30: S.US.APH | H30: 30
B31: 1 | C31: S.US.APO | D31: =IFERROR(RTD("cqg.rtd", ,"ContractData",C31, "PerCentNetLastTrade",, "T")/100,"") ->  | E31: =IFERROR(RANK($D31,$D$1:D$447)+COUNTIF($D$1:D31,D31)-1,0) -> 0 | F31: 0 | G31: S.US.APO | H31: 31
B32: 1 | C32: S.US.APPF | D32: =IFERROR(RTD("cqg.rtd", ,"ContractData",C32, "PerCentNetLastTrade",, "T")/100,"") ->  | E32: =IFERROR(RANK($D32,$D$1:D$447)+COUNTIF($D$1:D32,D32)-1,0) -> 0 | F32: 0 | G32: S.US.APPF | H32: 32
B33: 1 | C33: S.US.ATR | D33: =IFERROR(RTD("cqg.rtd", ,"ContractData",C33, "PerCentNetLastTrade",, "T")/100,"") ->  | E33: =IFERROR(RANK($D33,$D$1:D$447)+COUNTIF($D$1:D33,D33)-1,0) -> 0 | F33: 0 | G33: S.US.ATR | H33: 33
B34: 1 | C34: S.US.AVB | D34: =IFERROR(RTD("cqg.rtd", ,"ContractData",C34, "PerCentNetLastTrade",, "T")/100,"") ->  | E34: =IFERROR(RANK($D34,$D$1:D$447)+COUNTIF($D$1:D34,D34)-1,0) -> 0 | F34: 0 | G34: S.US.AVB | H34: 34
B35: 1 | C35: S.US.AVGO | D35: =IFERROR(RTD("cqg.rtd", ,"ContractData",C35, "PerCentNetLastTrade",, "T")/100,"") ->  | E35: =IFERROR(RANK($D35,$D$1:D$447)+COUNTIF($D$1:D35,D35)-1,0) -> 0 | F35: 0 | G35: S.US.AVGO | H35: 35
B36: 1 | C36: S.US.AXON | D36: =IFERROR(RTD("cqg.rtd", ,"ContractData",C36, "PerCentNetLastTrade",, "T")/100,"") ->  | E36: =IFERROR(RANK($D36,$D$1:D$447)+COUNTIF($D$1:D36,D36)-1,0) -> 0 | F36: 0 | G36: S.US.AXON | H36: 36
B37: 1 | C37: S.US.AXP | D37: =IFERROR(RTD("cqg.rtd", ,"ContractData",C37, "PerCentNetLastTrade",, "T")/100,"") ->  | E37: =IFERROR(RANK($D37,$D$1:D$447)+COUNTIF($D$1:D37,D37)-1,0) -> 0 | F37: 0 | G37: S.US.AXP | H37: 37
B38: 1 | C38: S.US.AXTA | D38: =IFERROR(RTD("cqg.rtd", ,"ContractData",C38, "PerCentNetLastTrade",, "T")/100,"") ->  | E38: =IFERROR(RANK($D38,$D$1:D$447)+COUNTIF($D$1:D38,D38)-1,0) -> 0 | F38: 0 | G38: S.US.AXTA | H38: 38
B39: 1 | C39: S.US.AYI | D39: =IFERROR(RTD("cqg.rtd", ,"ContractData",C39, "PerCentNetLastTrade",, "T")/100,"") ->  | E39: =IFERROR(RANK($D39,$D$1:D$447)+COUNTIF($D$1:D39,D39)-1,0) -> 0 | F39: 0 | G39: S.US.AYI | H39: 39
B40: 1 | C40: S.US.AZO | D40: =IFERROR(RTD("cqg.rtd", ,"ContractData",C40, "PerCentNetLastTrade",, "T")/100,"") ->  | E40: =IFERROR(RANK($D40,$D$1:D$447)+COUNTIF($D$1:D40,D40)-1,0) -> 0 | F40: 0 | G40: S.US.AZO | H40: 40
B41: 1 | C41: S.US.BCO | D41: =IFERROR(RTD("cqg.rtd", ,"ContractData",C41, "PerCentNetLastTrade",, "T")/100,"") ->  | E41: =IFERROR(RANK($D41,$D$1:D$447)+COUNTIF($D$1:D41,D41)-1,0) -> 0 | F41: 0 | G41: S.US.BCO | H41: 41
B42: 1 | C42: S.US.BDC | D42: =IFERROR(RTD("cqg.rtd", ,"ContractData",C42, "PerCentNetLastTrade",, "T")/100,"") ->  | E42: =IFERROR(RANK($D42,$D$1:D$447)+COUNTIF($D$1:D42,D42)-1,0) -> 0 | F42: 0 | G42: S.US.BDC | H42: 42
B43: 1 | C43: S.US.BJ | D43: =IFERROR(RTD("cqg.rtd", ,"ContractData",C43, "PerCentNetLastTrade",, "T")/100,"") ->  | E43: =IFERROR(RANK($D43,$D$1:D$447)+COUNTIF($D$1:D43,D43)-1,0) -> 0 | F43: 0 | G43: S.US.BJ | H43: 43
B44: 1 | C44: S.US.BK | D44: =IFERROR(RTD("cqg.rtd", ,"ContractData",C44, "PerCentNetLastTrade",, "T")/100,"") ->  | E44: =IFERROR(RANK($D44,$D$1:D$447)+COUNTIF($D$1:D44,D44)-1,0) -> 0 | F44: 0 | G44: S.US.BK | H44: 44
B45: 1 | C45: S.US.BKNG | D45: =IFERROR(RTD("cqg.rtd", ,"ContractData",C45, "PerCentNetLastTrade",, "T")/100,"") ->  | E45: =IFERROR(RANK($D45,$D$1:D$447)+COUNTIF($D$1:D45,D45)-1,0) -> 0 | F45: 0 | G45: S.US.BKNG | H45: 45
B46: 1 | C46: S.US.BLD | D46: =IFERROR(RTD("cqg.rtd", ,"ContractData",C46, "PerCentNetLastTrade",, "T")/100,"") ->  | E46: =IFERROR(RANK($D46,$D$1:D$447)+COUNTIF($D$1:D46,D46)-1,0) -> 0 | F46: 0 | G46: S.US.BLD | H46: 46
B47: 1 | C47: S.US.BLDR | D47: =IFERROR(RTD("cqg.rtd", ,"ContractData",C47, "PerCentNetLastTrade",, "T")/100,"") ->  | E47: =IFERROR(RANK($D47,$D$1:D$447)+COUNTIF($D$1:D47,D47)-1,0) -> 0 | F47: 0 | G47: S.US.BLDR | H47: 47
B48: 1 | C48: S.US.BLKB | D48: =IFERROR(RTD("cqg.rtd", ,"ContractData",C48, "PerCentNetLastTrade",, "T")/100,"") ->  | E48: =IFERROR(RANK($D48,$D$1:D$447)+COUNTIF($D$1:D48,D48)-1,0) -> 0 | F48: 0 | G48: S.US.BLKB | H48: 48
B49: 1 | C49: S.US.BR | D49: =IFERROR(RTD("cqg.rtd", ,"ContractData",C49, "PerCentNetLastTrade",, "T")/100,"") ->  | E49: =IFERROR(RANK($D49,$D$1:D$447)+COUNTIF($D$1:D49,D49)-1,0) -> 0 | F49: 0 | G49: S.US.BR | H49: 49
B50: 1 | C50: S.US.BRBR | D50: =IFERROR(RTD("cqg.rtd", ,"ContractData",C50, "PerCentNetLastTrade",, "T")/100,"") ->  | E50: =IFERROR(RANK($D50,$D$1:D$447)+COUNTIF($D$1:D50,D50)-1,0) -> 0 | F50: 0 | G50: S.US.BRBR | H50: 50
B51: 1 | C51: S.US.BRKB | D51: =IFERROR(RTD("cqg.rtd", ,"ContractData",C51, "PerCentNetLastTrade",, "T")/100,"") ->  | E51: =IFERROR(RANK($D51,$D$1:D$447)+COUNTIF($D$1:D51,D51)-1,0) -> 0 | F51: 0 | G51: S.US.BRKB | H51: 51
B52: 1 | C52: S.US.BRKR | D52: =IFERROR(RTD("cqg.rtd", ,"ContractData",C52, "PerCentNetLastTrade",, "T")/100,"") ->  | E52: =IFERROR(RANK($D52,$D$1:D$447)+COUNTIF($D$1:D52,D52)-1,0) -> 0 | F52: 0 | G52: S.US.BRKR | H52: 52
B53: 1 | C53: S.US.BRO | D53: =IFERROR(RTD("cqg.rtd", ,"ContractData",C53, "PerCentNetLastTrade",, "T")/100,"") ->  | E53: =IFERROR(RANK($D53,$D$1:D$447)+COUNTIF($D$1:D53,D53)-1,0) -> 0 | F53: 0 | G53: S.US.BRO | H53: 53
B54: 1 | C54: S.US.BRX | D54: =IFERROR(RTD("cqg.rtd", ,"ContractData",C54, "PerCentNetLastTrade",, "T")/100,"") ->  | E54: =IFERROR(RANK($D54,$D$1:D$447)+COUNTIF($D$1:D54,D54)-1,0) -> 0 | F54: 0 | G54: S.US.BRX | H54: 54
B55: 1 | C55: S.US.BSX | D55: =IFERROR(RTD("cqg.rtd", ,"ContractData",C55, "PerCentNetLastTrade",, "T")/100,"") ->  | E55: =IFERROR(RANK($D55,$D$1:D$447)+COUNTIF($D$1:D55,D55)-1,0) -> 0 | F55: 0 | G55: S.US.BSX | H55: 55
B56: 1 | C56: S.US.BURL | D56: =IFERROR(RTD("cqg.rtd", ,"ContractData",C56, "PerCentNetLastTrade",, "T")/100,"") ->  | E56: =IFERROR(RANK($D56,$D$1:D$447)+COUNTIF($D$1:D56,D56)-1,0) -> 0 | F56: 0 | G56: S.US.BURL | H56: 56
B57: 1 | C57: S.US.BWXT | D57: =IFERROR(RTD("cqg.rtd", ,"ContractData",C57, "PerCentNetLastTrade",, "T")/100,"") ->  | E57: =IFERROR(RANK($D57,$D$1:D$447)+COUNTIF($D$1:D57,D57)-1,0) -> 0 | F57: 0 | G57: S.US.BWXT | H57: 57
B58: 1 | C58: S.US.BYD | D58: =IFERROR(RTD("cqg.rtd", ,"ContractData",C58, "PerCentNetLastTrade",, "T")/100,"") ->  | E58: =IFERROR(RANK($D58,$D$1:D$447)+COUNTIF($D$1:D58,D58)-1,0) -> 0 | F58: 0 | G58: S.US.BYD | H58: 58
B59: 1 | C59: S.US.CACI | D59: =IFERROR(RTD("cqg.rtd", ,"ContractData",C59, "PerCentNetLastTrade",, "T")/100,"") ->  | E59: =IFERROR(RANK($D59,$D$1:D$447)+COUNTIF($D$1:D59,D59)-1,0) -> 0 | F59: 0 | G59: S.US.CACI | H59: 59
B60: 1 | C60: S.US.CARR | D60: =IFERROR(RTD("cqg.rtd", ,"ContractData",C60, "PerCentNetLastTrade",, "T")/100,"") ->  | E60: =IFERROR(RANK($D60,$D$1:D$447)+COUNTIF($D$1:D60,D60)-1,0) -> 0 | F60: 0 | G60: S.US.CARR | H60: 60
B61: 1 | C61: S.US.CART | D61: =IFERROR(RTD("cqg.rtd", ,"ContractData",C61, "PerCentNetLastTrade",, "T")/100,"") ->  | E61: =IFERROR(RANK($D61,$D$1:D$447)+COUNTIF($D$1:D61,D61)-1,0) -> 0 | F61: 0 | G61: S.US.CART | H61: 61
B62: 1 | C62: S.US.CASY | D62: =IFERROR(RTD("cqg.rtd", ,"ContractData",C62, "PerCentNetLastTrade",, "T")/100,"") ->  | E62: =IFERROR(RANK($D62,$D$1:D$447)+COUNTIF($D$1:D62,D62)-1,0) -> 0 | F62: 0 | G62: S.US.CASY | H62: 62
B63: 1 | C63: S.US.CAT | D63: =IFERROR(RTD("cqg.rtd", ,"ContractData",C63, "PerCentNetLastTrade",, "T")/100,"") ->  | E63: =IFERROR(RANK($D63,$D$1:D$447)+COUNTIF($D$1:D63,D63)-1,0) -> 0 | F63: 0 | G63: S.US.CAT | H63: 63
B64: 1 | C64: S.US.CBRE | D64: =IFERROR(RTD("cqg.rtd", ,"ContractData",C64, "PerCentNetLastTrade",, "T")/100,"") ->  | E64: =IFERROR(RANK($D64,$D$1:D$447)+COUNTIF($D$1:D64,D64)-1,0) -> 0 | F64: 0 | G64: S.US.CBRE | H64: 64
B65: 1 | C65: S.US.CBSH | D65: =IFERROR(RTD("cqg.rtd", ,"ContractData",C65, "PerCentNetLastTrade",, "T")/100,"") ->  | E65: =IFERROR(RANK($D65,$D$1:D$447)+COUNTIF($D$1:D65,D65)-1,0) -> 0 | F65: 0 | G65: S.US.CBSH | H65: 65
B66: =IF(D66>=0,1,) -> 1 | C66: S.US.CBT | D66: =IFERROR(RTD("cqg.rtd", ,"ContractData",C66, "PerCentNetLastTrade",, "T")/100,"") ->  | E66: =IFERROR(RANK($D66,$D$1:D$447)+COUNTIF($D$1:D66,D66)-1,0) -> 0 | F66: =IFERROR(E66,"") -> 0 | G66: =C66 -> S.US.CBT | H66: 66 | I66: =IFERROR(VLOOKUP(H66,$F$1:$G$447,2,FALSE),"") -> 
B67: 1 | C67: S.US.CCL | D67: =IFERROR(RTD("cqg.rtd", ,"ContractData",C67, "PerCentNetLastTrade",, "T")/100,"") ->  | E67: =IFERROR(RANK($D67,$D$1:D$447)+COUNTIF($D$1:D67,D67)-1,0) -> 0 | F67: 0 | G67: S.US.CCL | H67: =H66+1 -> 67
B68: 1 | C68: S.US.CDNS | D68: =IFERROR(RTD("cqg.rtd", ,"ContractData",C68, "PerCentNetLastTrade",, "T")/100,"") ->  | E68: =IFERROR(RANK($D68,$D$1:D$447)+COUNTIF($D$1:D68,D68)-1,0) -> 0 | F68: 0 | G68: S.US.CDNS | H68: 68
B69: 1 | C69: S.US.CDP | D69: =IFERROR(RTD("cqg.rtd", ,"ContractData",C69, "PerCentNetLastTrade",, "T")/100,"") ->  | E69: =IFERROR(RANK($D69,$D$1:D$447)+COUNTIF($D$1:D69,D69)-1,0) -> 0 | F69: 0 | G69: S.US.CDP | H69: 69
B70: 1 | C70: S.US.CEG | D70: =IFERROR(RTD("cqg.rtd", ,"ContractData",C70, "PerCentNetLastTrade",, "T")/100,"") ->  | E70: =IFERROR(RANK($D70,$D$1:D$447)+COUNTIF($D$1:D70,D70)-1,0) -> 0 | F70: 0 | G70: S.US.CEG | H70: 70
B71: 1 | C71: S.US.CELH | D71: =IFERROR(RTD("cqg.rtd", ,"ContractData",C71, "PerCentNetLastTrade",, "T")/100,"") ->  | E71: =IFERROR(RANK($D71,$D$1:D$447)+COUNTIF($D$1:D71,D71)-1,0) -> 0 | F71: 0 | G71: S.US.CELH | H71: 71
B72: 1 | C72: S.US.CFR | D72: =IFERROR(RTD("cqg.rtd", ,"ContractData",C72, "PerCentNetLastTrade",, "T")/100,"") ->  | E72: =IFERROR(RANK($D72,$D$1:D$447)+COUNTIF($D$1:D72,D72)-1,0) -> 0 | F72: 0 | G72: S.US.CFR | H72: 72
B73: 1 | C73: S.US.CG | D73: =IFERROR(RTD("cqg.rtd", ,"ContractData",C73, "PerCentNetLastTrade",, "T")/100,"") ->  | E73: =IFERROR(RANK($D73,$D$1:D$447)+COUNTIF($D$1:D73,D73)-1,0) -> 0 | F73: 0 | G73: S.US.CG | H73: 73
B74: 1 | C74: S.US.CGNX | D74: =IFERROR(RTD("cqg.rtd", ,"ContractData",C74, "PerCentNetLastTrade",, "T")/100,"") ->  | E74: =IFERROR(RANK($D74,$D$1:D$447)+COUNTIF($D$1:D74,D74)-1,0) -> 0 | F74: 0 | G74: S.US.CGNX | H74: 74
B75: 1 | C75: S.US.CHDN | D75: =IFERROR(RTD("cqg.rtd", ,"ContractData",C75, "PerCentNetLastTrade",, "T")/100,"") ->  | E75: =IFERROR(RANK($D75,$D$1:D$447)+COUNTIF($D$1:D75,D75)-1,0) -> 0 | F75: 0 | G75: S.US.CHDN | H75: 75
B76: 1 | C76: S.US.CHE | D76: =IFERROR(RTD("cqg.rtd", ,"ContractData",C76, "PerCentNetLastTrade",, "T")/100,"") ->  | E76: =IFERROR(RANK($D76,$D$1:D$447)+COUNTIF($D$1:D76,D76)-1,0) -> 0 | F76: 0 | G76: S.US.CHE | H76: 76
B77: 1 | C77: S.US.CHH | D77: =IFERROR(RTD("cqg.rtd", ,"ContractData",C77, "PerCentNetLastTrade",, "T")/100,"") ->  | E77: =IFERROR(RANK($D77,$D$1:D$447)+COUNTIF($D$1:D77,D77)-1,0) -> 0 | F77: 0 | G77: S.US.CHH | H77: 77
B78: 1 | C78: S.US.CHWY | D78: =IFERROR(RTD("cqg.rtd", ,"ContractData",C78, "PerCentNetLastTrade",, "T")/100,"") ->  | E78: =IFERROR(RANK($D78,$D$1:D$447)+COUNTIF($D$1:D78,D78)-1,0) -> 0 | F78: 0 | G78: S.US.CHWY | H78: 78
B79: 1 | C79: S.US.CHX | D79: =IFERROR(RTD("cqg.rtd", ,"ContractData",C79, "PerCentNetLastTrade",, "T")/100,"") ->  | E79: =IFERROR(RANK($D79,$D$1:D$447)+COUNTIF($D$1:D79,D79)-1,0) -> 0 | F79: 0 | G79: S.US.CHX | H79: 79
B80: 1 | C80: S.US.CIEN | D80: =IFERROR(RTD("cqg.rtd", ,"ContractData",C80, "PerCentNetLastTrade",, "T")/100,"") ->  | E80: =IFERROR(RANK($D80,$D$1:D$447)+COUNTIF($D$1:D80,D80)-1,0) -> 0 | F80: 0 | G80: S.US.CIEN | H80: 80
B81: 1 | C81: S.US.CINF | D81: =IFERROR(RTD("cqg.rtd", ,"ContractData",C81, "PerCentNetLastTrade",, "T")/100,"") ->  | E81: =IFERROR(RANK($D81,$D$1:D$447)+COUNTIF($D$1:D81,D81)-1,0) -> 0 | F81: 0 | G81: S.US.CINF | H81: 81
B82: 1 | C82: S.US.CL | D82: =IFERROR(RTD("cqg.rtd", ,"ContractData",C82, "PerCentNetLastTrade",, "T")/100,"") ->  | E82: =IFERROR(RANK($D82,$D$1:D$447)+COUNTIF($D$1:D82,D82)-1,0) -> 0 | F82: 0 | G82: S.US.CL | H82: 82
B83: 1 | C83: S.US.CLH | D83: =IFERROR(RTD("cqg.rtd", ,"ContractData",C83, "PerCentNetLastTrade",, "T")/100,"") ->  | E83: =IFERROR(RANK($D83,$D$1:D$447)+COUNTIF($D$1:D83,D83)-1,0) -> 0 | F83: 0 | G83: S.US.CLH | H83: 83
B84: 1 | C84: S.US.CMG | D84: =IFERROR(RTD("cqg.rtd", ,"ContractData",C84, "PerCentNetLastTrade",, "T")/100,"") ->  | E84: =IFERROR(RANK($D84,$D$1:D$447)+COUNTIF($D$1:D84,D84)-1,0) -> 0 | F84: 0 | G84: S.US.CMG | H84: 84
B85: 1 | C85: S.US.CMI | D85: =IFERROR(RTD("cqg.rtd", ,"ContractData",C85, "PerCentNetLastTrade",, "T")/100,"") ->  | E85: =IFERROR(RANK($D85,$D$1:D$447)+COUNTIF($D$1:D85,D85)-1,0) -> 0 | F85: 0 | G85: S.US.CMI | H85: 85
B86: 1 | C86: S.US.CNM | D86: =IFERROR(RTD("cqg.rtd", ,"ContractData",C86, "PerCentNetLastTrade",, "T")/100,"") ->  | E86: =IFERROR(RANK($D86,$D$1:D$447)+COUNTIF($D$1:D86,D86)-1,0) -> 0 | F86: 0 | G86: S.US.CNM | H86: 86
B87: 1 | C87: S.US.CNX | D87: =IFERROR(RTD("cqg.rtd", ,"ContractData",C87, "PerCentNetLastTrade",, "T")/100,"") ->  | E87: =IFERROR(RANK($D87,$D$1:D$447)+COUNTIF($D$1:D87,D87)-1,0) -> 0 | F87: 0 | G87: S.US.CNX | H87: 87
B88: 1 | C88: S.US.COHR | D88: =IFERROR(RTD("cqg.rtd", ,"ContractData",C88, "PerCentNetLastTrade",, "T")/100,"") ->  | E88: =IFERROR(RANK($D88,$D$1:D$447)+COUNTIF($D$1:D88,D88)-1,0) -> 0 | F88: 0 | G88: S.US.COHR | H88: 88
B89: 1 | C89: S.US.COKE | D89: =IFERROR(RTD("cqg.rtd", ,"ContractData",C89, "PerCentNetLastTrade",, "T")/100,"") ->  | E89: =IFERROR(RANK($D89,$D$1:D$447)+COUNTIF($D$1:D89,D89)-1,0) -> 0 | F89: 0 | G89: S.US.COKE | H89: 89
B90: 1 | C90: S.US.COST | D90: =IFERROR(RTD("cqg.rtd", ,"ContractData",C90, "PerCentNetLastTrade",, "T")/100,"") ->  | E90: =IFERROR(RANK($D90,$D$1:D$447)+COUNTIF($D$1:D90,D90)-1,0) -> 0 | F90: 0 | G90: S.US.COST | H90: 90
B91: 1 | C91: S.US.CPAY | D91: =IFERROR(RTD("cqg.rtd", ,"ContractData",C91, "PerCentNetLastTrade",, "T")/100,"") ->  | E91: =IFERROR(RANK($D91,$D$1:D$447)+COUNTIF($D$1:D91,D91)-1,0) -> 0 | F91: 0 | G91: S.US.CPAY | H91: 91
B92: 1 | C92: S.US.CPRT | D92: =IFERROR(RTD("cqg.rtd", ,"ContractData",C92, "PerCentNetLastTrade",, "T")/100,"") ->  | E92: =IFERROR(RANK($D92,$D$1:D$447)+COUNTIF($D$1:D92,D92)-1,0) -> 0 | F92: 0 | G92: S.US.CPRT | H92: 92
B93: 1 | C93: S.US.CPT | D93: =IFERROR(RTD("cqg.rtd", ,"ContractData",C93, "PerCentNetLastTrade",, "T")/100,"") ->  | E93: =IFERROR(RANK($D93,$D$1:D$447)+COUNTIF($D$1:D93,D93)-1,0) -> 0 | F93: 0 | G93: S.US.CPT | H93: 93
B94: 1 | C94: S.US.CR | D94: =IFERROR(RTD("cqg.rtd", ,"ContractData",C94, "PerCentNetLastTrade",, "T")/100,"") ->  | E94: =IFERROR(RANK($D94,$D$1:D$447)+COUNTIF($D$1:D94,D94)-1,0) -> 0 | F94: 0 | G94: S.US.CR | H94: 94
B95: 1 | C95: S.US.CRM | D95: =IFERROR(RTD("cqg.rtd", ,"ContractData",C95, "PerCentNetLastTrade",, "T")/100,"") ->  | E95: =IFERROR(RANK($D95,$D$1:D$447)+COUNTIF($D$1:D95,D95)-1,0) -> 0 | F95: 0 | G95: S.US.CRM | H95: 95
B96: 1 | C96: S.US.CROX | D96: =IFERROR(RTD("cqg.rtd", ,"ContractData",C96, "PerCentNetLastTrade",, "T")/100,"") ->  | E96: =IFERROR(RANK($D96,$D$1:D$447)+COUNTIF($D$1:D96,D96)-1,0) -> 0 | F96: 0 | G96: S.US.CROX | H96: 96
B97: 1 | C97: S.US.CRS | D97: =IFERROR(RTD("cqg.rtd", ,"ContractData",C97, "PerCentNetLastTrade",, "T")/100,"") ->  | E97: =IFERROR(RANK($D97,$D$1:D$447)+COUNTIF($D$1:D97,D97)-1,0) -> 0 | F97: 0 | G97: S.US.CRS | H97: 97
B98: 1 | C98: S.US.CRUS | D98: =IFERROR(RTD("cqg.rtd", ,"ContractData",C98, "PerCentNetLastTrade",, "T")/100,"") ->  | E98: =IFERROR(RANK($D98,$D$1:D$447)+COUNTIF($D$1:D98,D98)-1,0) -> 0 | F98: 0 | G98: S.US.CRUS | H98: 98
B99: 1 | C99: S.US.CRWD | D99: =IFERROR(RTD("cqg.rtd", ,"ContractData",C99, "PerCentNetLastTrade",, "T")/100,"") ->  | E99: =IFERROR(RANK($D99,$D$1:D$447)+COUNTIF($D$1:D99,D99)-1,0) -> 0 | F99: 0 | G99: S.US.CRWD | H99: 99
B100: 1 | C100: S.US.CSL | D100: =IFERROR(RTD("cqg.rtd", ,"ContractData",C100, "PerCentNetLastTrade",, "T")/100,"") ->  | E100: =IFERROR(RANK($D100,$D$1:D$447)+COUNTIF($D$1:D100,D100)-1,0) -> 0 | F100: 0 | G100: S.US.CSL | H100: 100
B101: 1 | C101: S.US.CSX | D101: =IFERROR(RTD("cqg.rtd", ,"ContractData",C101, "PerCentNetLastTrade",, "T")/100,"") ->  | E101: =IFERROR(RANK($D101,$D$1:D$447)+COUNTIF($D$1:D101,D101)-1,0) -> 0 | F101: 0 | G101: S.US.CSX | H101: 101
B102: 1 | C102: S.US.CTAS | D102: =IFERROR(RTD("cqg.rtd", ,"ContractData",C102, "PerCentNetLastTrade",, "T")/100,"") ->  | E102: =IFERROR(RANK($D102,$D$1:D$447)+COUNTIF($D$1:D102,D102)-1,0) -> 0 | F102: 0 | G102: S.US.CTAS | H102: 102
B103: 1 | C103: S.US.CUBE | D103: =IFERROR(RTD("cqg.rtd", ,"ContractData",C103, "PerCentNetLastTrade",, "T")/100,"") ->  | E103: =IFERROR(RANK($D103,$D$1:D$447)+COUNTIF($D$1:D103,D103)-1,0) -> 0 | F103: 0 | G103: S.US.CUBE | H103: 103
B104: 1 | C104: S.US.CVLT | D104: =IFERROR(RTD("cqg.rtd", ,"ContractData",C104, "PerCentNetLastTrade",, "T")/100,"") ->  | E104: =IFERROR(RANK($D104,$D$1:D$447)+COUNTIF($D$1:D104,D104)-1,0) -> 0 | F104: 0 | G104: S.US.CVLT | H104: 104
B105: 1 | C105: S.US.CW | D105: =IFERROR(RTD("cqg.rtd", ,"ContractData",C105, "PerCentNetLastTrade",, "T")/100,"") ->  | E105: =IFERROR(RANK($D105,$D$1:D$447)+COUNTIF($D$1:D105,D105)-1,0) -> 0 | F105: 0 | G105: S.US.CW | H105: 105
B106: 1 | C106: S.US.CXT | D106: =IFERROR(RTD("cqg.rtd", ,"ContractData",C106, "PerCentNetLastTrade",, "T")/100,"") ->  | E106: =IFERROR(RANK($D106,$D$1:D$447)+COUNTIF($D$1:D106,D106)-1,0) -> 0 | F106: 0 | G106: S.US.CXT | H106: 106
B107: 1 | C107: S.US.CYTK | D107: =IFERROR(RTD("cqg.rtd", ,"ContractData",C107, "PerCentNetLastTrade",, "T")/100,"") ->  | E107: =IFERROR(RANK($D107,$D$1:D$447)+COUNTIF($D$1:D107,D107)-1,0) -> 0 | F107: 0 | G107: S.US.CYTK | H107: 107
B108: 1 | C108: S.US.DAL | D108: =IFERROR(RTD("cqg.rtd", ,"ContractData",C108, "PerCentNetLastTrade",, "T")/100,"") ->  | E108: =IFERROR(RANK($D108,$D$1:D$447)+COUNTIF($D$1:D108,D108)-1,0) -> 0 | F108: 0 | G108: S.US.DAL | H108: 108
B109: 1 | C109: S.US.DAY | D109: =IFERROR(RTD("cqg.rtd", ,"ContractData",C109, "PerCentNetLastTrade",, "T")/100,"") ->  | E109: =IFERROR(RANK($D109,$D$1:D$447)+COUNTIF($D$1:D109,D109)-1,0) -> 0 | F109: 0 | G109: S.US.DAY | H109: 109
B110: 1 | C110: S.US.DBX | D110: =IFERROR(RTD("cqg.rtd", ,"ContractData",C110, "PerCentNetLastTrade",, "T")/100,"") ->  | E110: =IFERROR(RANK($D110,$D$1:D$447)+COUNTIF($D$1:D110,D110)-1,0) -> 0 | F110: 0 | G110: S.US.DBX | H110: 110
B111: 1 | C111: S.US.DCI | D111: =IFERROR(RTD("cqg.rtd", ,"ContractData",C111, "PerCentNetLastTrade",, "T")/100,"") ->  | E111: =IFERROR(RANK($D111,$D$1:D$447)+COUNTIF($D$1:D111,D111)-1,0) -> 0 | F111: 0 | G111: S.US.DCI | H111: 111
B112: 1 | C112: S.US.DE | D112: =IFERROR(RTD("cqg.rtd", ,"ContractData",C112, "PerCentNetLastTrade",, "T")/100,"") ->  | E112: =IFERROR(RANK($D112,$D$1:D$447)+COUNTIF($D$1:D112,D112)-1,0) -> 0 | F112: 0 | G112: S.US.DE | H112: 112
B113: 1 | C113: S.US.DECK | D113: =IFERROR(RTD("cqg.rtd", ,"ContractData",C113, "PerCentNetLastTrade",, "T")/100,"") ->  | E113: =IFERROR(RANK($D113,$D$1:D$447)+COUNTIF($D$1:D113,D113)-1,0) -> 0 | F113: 0 | G113: S.US.DECK | H113: 113
B114: 1 | C114: S.US.DELL | D114: =IFERROR(RTD("cqg.rtd", ,"ContractData",C114, "PerCentNetLastTrade",, "T")/100,"") ->  | E114: =IFERROR(RANK($D114,$D$1:D$447)+COUNTIF($D$1:D114,D114)-1,0) -> 0 | F114: 0 | G114: S.US.DELL | H114: 114
B115: 1 | C115: S.US.DFS | D115: =IFERROR(RTD("cqg.rtd", ,"ContractData",C115, "PerCentNetLastTrade",, "T")/100,"") ->  | E115: =IFERROR(RANK($D115,$D$1:D$447)+COUNTIF($D$1:D115,D115)-1,0) -> 0 | F115: 0 | G115: S.US.DFS | H115: 115
B116: 1 | C116: S.US.DKS | D116: =IFERROR(RTD("cqg.rtd", ,"ContractData",C116, "PerCentNetLastTrade",, "T")/100,"") ->  | E116: =IFERROR(RANK($D116,$D$1:D$447)+COUNTIF($D$1:D116,D116)-1,0) -> 0 | F116: 0 | G116: S.US.DKS | H116: 116
B117: 1 | C117: S.US.DOCS | D117: =IFERROR(RTD("cqg.rtd", ,"ContractData",C117, "PerCentNetLastTrade",, "T")/100,"") ->  | E117: =IFERROR(RANK($D117,$D$1:D$447)+COUNTIF($D$1:D117,D117)-1,0) -> 0 | F117: 0 | G117: S.US.DOCS | H117: 117
B118: 1 | C118: S.US.DOCU | D118: =IFERROR(RTD("cqg.rtd", ,"ContractData",C118, "PerCentNetLastTrade",, "T")/100,"") ->  | E118: =IFERROR(RANK($D118,$D$1:D$447)+COUNTIF($D$1:D118,D118)-1,0) -> 0 | F118: 0 | G118: S.US.DOCU | H118: 118
B119: 1 | C119: S.US.DOV | D119: =IFERROR(RTD("cqg.rtd", ,"ContractData",C119, "PerCentNetLastTrade",, "T")/100,"") ->  | E119: =IFERROR(RANK($D119,$D$1:D$447)+COUNTIF($D$1:D119,D119)-1,0) -> 0 | F119: 0 | G119: S.US.DOV | H119: 119
B120: 1 | C120: S.US.DPZ | D120: =IFERROR(RTD("cqg.rtd", ,"ContractData",C120, "PerCentNetLastTrade",, "T")/100,"") ->  | E120: =IFERROR(RANK($D120,$D$1:D$447)+COUNTIF($D$1:D120,D120)-1,0) -> 0 | F120: 0 | G120: S.US.DPZ | H120: 120
B121: 1 | C121: S.US.DRI | D121: =IFERROR(RTD("cqg.rtd", ,"ContractData",C121, "PerCentNetLastTrade",, "T")/100,"") ->  | E121: =IFERROR(RANK($D121,$D$1:D$447)+COUNTIF($D$1:D121,D121)-1,0) -> 0 | F121: 0 | G121: S.US.DRI | H121: 121
B122: 1 | C122: S.US.DT | D122: =IFERROR(RTD("cqg.rtd", ,"ContractData",C122, "PerCentNetLastTrade",, "T")/100,"") ->  | E122: =IFERROR(RANK($D122,$D$1:D$447)+COUNTIF($D$1:D122,D122)-1,0) -> 0 | F122: 0 | G122: S.US.DT | H122: 122
B123: 1 | C123: S.US.DTM | D123: =IFERROR(RTD("cqg.rtd", ,"ContractData",C123, "PerCentNetLastTrade",, "T")/100,"") ->  | E123: =IFERROR(RANK($D123,$D$1:D$447)+COUNTIF($D$1:D123,D123)-1,0) -> 0 | F123: 0 | G123: S.US.DTM | H123: 123
B124: 1 | C124: S.US.DUOL | D124: =IFERROR(RTD("cqg.rtd", ,"ContractData",C124, "PerCentNetLastTrade",, "T")/100,"") ->  | E124: =IFERROR(RANK($D124,$D$1:D$447)+COUNTIF($D$1:D124,D124)-1,0) -> 0 | F124: 0 | G124: S.US.DUOL | H124: 124
B125: 1 | C125: S.US.DVA | D125: =IFERROR(RTD("cqg.rtd", ,"ContractData",C125, "PerCentNetLastTrade",, "T")/100,"") ->  | E125: =IFERROR(RANK($D125,$D$1:D$447)+COUNTIF($D$1:D125,D125)-1,0) -> 0 | F125: 0 | G125: S.US.DVA | H125: 125
B126: 1 | C126: S.US.DXCM | D126: =IFERROR(RTD("cqg.rtd", ,"ContractData",C126, "PerCentNetLastTrade",, "T")/100,"") ->  | E126: =IFERROR(RANK($D126,$D$1:D$447)+COUNTIF($D$1:D126,D126)-1,0) -> 0 | F126: 0 | G126: S.US.DXCM | H126: 126
B127: 1 | C127: S.US.EA | D127: =IFERROR(RTD("cqg.rtd", ,"ContractData",C127, "PerCentNetLastTrade",, "T")/100,"") ->  | E127: =IFERROR(RANK($D127,$D$1:D$447)+COUNTIF($D$1:D127,D127)-1,0) -> 0 | F127: 0 | G127: S.US.EA | H127: 127
B128: 1 | C128: S.US.EBAY | D128: =IFERROR(RTD("cqg.rtd", ,"ContractData",C128, "PerCentNetLastTrade",, "T")/100,"") ->  | E128: =IFERROR(RANK($D128,$D$1:D$447)+COUNTIF($D$1:D128,D128)-1,0) -> 0 | F128: 0 | G128: S.US.EBAY | H128: 128
B129: 1 | C129: S.US.ECL | D129: =IFERROR(RTD("cqg.rtd", ,"ContractData",C129, "PerCentNetLastTrade",, "T")/100,"") ->  | E129: =IFERROR(RANK($D129,$D$1:D$447)+COUNTIF($D$1:D129,D129)-1,0) -> 0 | F129: 0 | G129: S.US.ECL | H129: 129
B130: =IF(D130>=0,1,) -> 1 | C130: S.US.EEFT | D130: =IFERROR(RTD("cqg.rtd", ,"ContractData",C130, "PerCentNetLastTrade",, "T")/100,"") ->  | E130: =IFERROR(RANK($D130,$D$1:D$447)+COUNTIF($D$1:D130,D130)-1,0) -> 0 | F130: =IFERROR(E130,"") -> 0 | G130: =C130 -> S.US.EEFT | H130: 130 | I130: =IFERROR(VLOOKUP(H130,$F$1:$G$447,2,FALSE),"") -> 
B131: 1 | C131: S.US.EGP | D131: =IFERROR(RTD("cqg.rtd", ,"ContractData",C131, "PerCentNetLastTrade",, "T")/100,"") ->  | E131: =IFERROR(RANK($D131,$D$1:D$447)+COUNTIF($D$1:D131,D131)-1,0) -> 0 | F131: 0 | G131: S.US.EGP | H131: =H130+1 -> 131
B132: 1 | C132: S.US.EHC | D132: =IFERROR(RTD("cqg.rtd", ,"ContractData",C132, "PerCentNetLastTrade",, "T")/100,"") ->  | E132: =IFERROR(RANK($D132,$D$1:D$447)+COUNTIF($D$1:D132,D132)-1,0) -> 0 | F132: 0 | G132: S.US.EHC | H132: 132
B133: 1 | C133: S.US.ELF | D133: =IFERROR(RTD("cqg.rtd", ,"ContractData",C133, "PerCentNetLastTrade",, "T")/100,"") ->  | E133: =IFERROR(RANK($D133,$D$1:D$447)+COUNTIF($D$1:D133,D133)-1,0) -> 0 | F133: 0 | G133: S.US.ELF | H133: 133
B134: 1 | C134: S.US.ELS | D134: =IFERROR(RTD("cqg.rtd", ,"ContractData",C134, "PerCentNetLastTrade",, "T")/100,"") ->  | E134: =IFERROR(RANK($D134,$D$1:D$447)+COUNTIF($D$1:D134,D134)-1,0) -> 0 | F134: 0 | G134: S.US.ELS | H134: 134
B135: 1 | C135: S.US.EME | D135: =IFERROR(RTD("cqg.rtd", ,"ContractData",C135, "PerCentNetLastTrade",, "T")/100,"") ->  | E135: =IFERROR(RANK($D135,$D$1:D$447)+COUNTIF($D$1:D135,D135)-1,0) -> 0 | F135: 0 | G135: S.US.EME | H135: 135
B136: 1 | C136: S.US.EMR | D136: =IFERROR(RTD("cqg.rtd", ,"ContractData",C136, "PerCentNetLastTrade",, "T")/100,"") ->  | E136: =IFERROR(RANK($D136,$D$1:D$447)+COUNTIF($D$1:D136,D136)-1,0) -> 0 | F136: 0 | G136: S.US.EMR | H136: 136
B137: 1 | C137: S.US.ENSG | D137: =IFERROR(RTD("cqg.rtd", ,"ContractData",C137, "PerCentNetLastTrade",, "T")/100,"") ->  | E137: =IFERROR(RANK($D137,$D$1:D$447)+COUNTIF($D$1:D137,D137)-1,0) -> 0 | F137: 0 | G137: S.US.ENSG | H137: 137
B138: 1 | C138: S.US.ENTG | D138: =IFERROR(RTD("cqg.rtd", ,"ContractData",C138, "PerCentNetLastTrade",, "T")/100,"") ->  | E138: =IFERROR(RANK($D138,$D$1:D$447)+COUNTIF($D$1:D138,D138)-1,0) -> 0 | F138: 0 | G138: S.US.ENTG | H138: 138
B139: 1 | C139: S.US.EQH | D139: =IFERROR(RTD("cqg.rtd", ,"ContractData",C139, "PerCentNetLastTrade",, "T")/100,"") ->  | E139: =IFERROR(RANK($D139,$D$1:D$447)+COUNTIF($D$1:D139,D139)-1,0) -> 0 | F139: 0 | G139: S.US.EQH | H139: 139
B140: 1 | C140: S.US.EQIX | D140: =IFERROR(RTD("cqg.rtd", ,"ContractData",C140, "PerCentNetLastTrade",, "T")/100,"") ->  | E140: =IFERROR(RANK($D140,$D$1:D$447)+COUNTIF($D$1:D140,D140)-1,0) -> 0 | F140: 0 | G140: S.US.EQIX | H140: 140
B141: 1 | C141: S.US.ERIE | D141: =IFERROR(RTD("cqg.rtd", ,"ContractData",C141, "PerCentNetLastTrade",, "T")/100,"") ->  | E141: =IFERROR(RANK($D141,$D$1:D$447)+COUNTIF($D$1:D141,D141)-1,0) -> 0 | F141: 0 | G141: S.US.ERIE | H141: 141
B142: 1 | C142: S.US.ESAB | D142: =IFERROR(RTD("cqg.rtd", ,"ContractData",C142, "PerCentNetLastTrade",, "T")/100,"") ->  | E142: =IFERROR(RANK($D142,$D$1:D$447)+COUNTIF($D$1:D142,D142)-1,0) -> 0 | F142: 0 | G142: S.US.ESAB | H142: 142
B143: 1 | C143: S.US.ESS | D143: =IFERROR(RTD("cqg.rtd", ,"ContractData",C143, "PerCentNetLastTrade",, "T")/100,"") ->  | E143: =IFERROR(RANK($D143,$D$1:D$447)+COUNTIF($D$1:D143,D143)-1,0) -> 0 | F143: 0 | G143: S.US.ESS | H143: 143
B144: 1 | C144: S.US.ETN | D144: =IFERROR(RTD("cqg.rtd", ,"ContractData",C144, "PerCentNetLastTrade",, "T")/100,"") ->  | E144: =IFERROR(RANK($D144,$D$1:D$447)+COUNTIF($D$1:D144,D144)-1,0) -> 0 | F144: 0 | G144: S.US.ETN | H144: 144
B145: 1 | C145: S.US.EVR | D145: =IFERROR(RTD("cqg.rtd", ,"ContractData",C145, "PerCentNetLastTrade",, "T")/100,"") ->  | E145: =IFERROR(RANK($D145,$D$1:D$447)+COUNTIF($D$1:D145,D145)-1,0) -> 0 | F145: 0 | G145: S.US.EVR | H145: 145
B146: 1 | C146: S.US.EWBC | D146: =IFERROR(RTD("cqg.rtd", ,"ContractData",C146, "PerCentNetLastTrade",, "T")/100,"") ->  | E146: =IFERROR(RANK($D146,$D$1:D$447)+COUNTIF($D$1:D146,D146)-1,0) -> 0 | F146: 0 | G146: S.US.EWBC | H146: 146
B147: 1 | C147: S.US.EXEL | D147: =IFERROR(RTD("cqg.rtd", ,"ContractData",C147, "PerCentNetLastTrade",, "T")/100,"") ->  | E147: =IFERROR(RANK($D147,$D$1:D$447)+COUNTIF($D$1:D147,D147)-1,0) -> 0 | F147: 0 | G147: S.US.EXEL | H147: 147
B148: 1 | C148: S.US.EXLS | D148: =IFERROR(RTD("cqg.rtd", ,"ContractData",C148, "PerCentNetLastTrade",, "T")/100,"") ->  | E148: =IFERROR(RANK($D148,$D$1:D$447)+COUNTIF($D$1:D148,D148)-1,0) -> 0 | F148: 0 | G148: S.US.EXLS | H148: 148
B149: 1 | C149: S.US.EXP | D149: =IFERROR(RTD("cqg.rtd", ,"ContractData",C149, "PerCentNetLastTrade",, "T")/100,"") ->  | E149: =IFERROR(RANK($D149,$D$1:D$447)+COUNTIF($D$1:D149,D149)-1,0) -> 0 | F149: 0 | G149: S.US.EXP | H149: 149
B150: 1 | C150: S.US.EXPE | D150: =IFERROR(RTD("cqg.rtd", ,"ContractData",C150, "PerCentNetLastTrade",, "T")/100,"") ->  | E150: =IFERROR(RANK($D150,$D$1:D$447)+COUNTIF($D$1:D150,D150)-1,0) -> 0 | F150: 0 | G150: S.US.EXPE | H150: 150
B151: 1 | C151: S.US.EXPO | D151: =IFERROR(RTD("cqg.rtd", ,"ContractData",C151, "PerCentNetLastTrade",, "T")/100,"") ->  | E151: =IFERROR(RANK($D151,$D$1:D$447)+COUNTIF($D$1:D151,D151)-1,0) -> 0 | F151: 0 | G151: S.US.EXPO | H151: 151
B152: 1 | C152: S.US.EXR | D152: =IFERROR(RTD("cqg.rtd", ,"ContractData",C152, "PerCentNetLastTrade",, "T")/100,"") ->  | E152: =IFERROR(RANK($D152,$D$1:D$447)+COUNTIF($D$1:D152,D152)-1,0) -> 0 | F152: 0 | G152: S.US.EXR | H152: 152
B153: 1 | C153: S.US.FAST | D153: =IFERROR(RTD("cqg.rtd", ,"ContractData",C153, "PerCentNetLastTrade",, "T")/100,"") ->  | E153: =IFERROR(RANK($D153,$D$1:D$447)+COUNTIF($D$1:D153,D153)-1,0) -> 0 | F153: 0 | G153: S.US.FAST | H153: 153
B154: 1 | C154: S.US.FCFS | D154: =IFERROR(RTD("cqg.rtd", ,"ContractData",C154, "PerCentNetLastTrade",, "T")/100,"") ->  | E154: =IFERROR(RANK($D154,$D$1:D$447)+COUNTIF($D$1:D154,D154)-1,0) -> 0 | F154: 0 | G154: S.US.FCFS | H154: 154
B155: 1 | C155: S.US.FDS | D155: =IFERROR(RTD("cqg.rtd", ,"ContractData",C155, "PerCentNetLastTrade",, "T")/100,"") ->  | E155: =IFERROR(RANK($D155,$D$1:D$447)+COUNTIF($D$1:D155,D155)-1,0) -> 0 | F155: 0 | G155: S.US.FDS | H155: 155
B156: 1 | C156: S.US.FFIN | D156: =IFERROR(RTD("cqg.rtd", ,"ContractData",C156, "PerCentNetLastTrade",, "T")/100,"") ->  | E156: =IFERROR(RANK($D156,$D$1:D$447)+COUNTIF($D$1:D156,D156)-1,0) -> 0 | F156: 0 | G156: S.US.FFIN | H156: 156
B157: 1 | C157: S.US.FFIV | D157: =IFERROR(RTD("cqg.rtd", ,"ContractData",C157, "PerCentNetLastTrade",, "T")/100,"") ->  | E157: =IFERROR(RANK($D157,$D$1:D$447)+COUNTIF($D$1:D157,D157)-1,0) -> 0 | F157: 0 | G157: S.US.FFIV | H157: 157
B158: 1 | C158: S.US.FHI | D158: =IFERROR(RTD("cqg.rtd", ,"ContractData",C158, "PerCentNetLastTrade",, "T")/100,"") ->  | E158: =IFERROR(RANK($D158,$D$1:D$447)+COUNTIF($D$1:D158,D158)-1,0) -> 0 | F158: 0 | G158: S.US.FHI | H158: 158
B159: 1 | C159: S.US.FI | D159: =IFERROR(RTD("cqg.rtd", ,"ContractData",C159, "PerCentNetLastTrade",, "T")/100,"") ->  | E159: =IFERROR(RANK($D159,$D$1:D$447)+COUNTIF($D$1:D159,D159)-1,0) -> 0 | F159: 0 | G159: S.US.FI | H159: 159
B160: 1 | C160: S.US.FICO | D160: =IFERROR(RTD("cqg.rtd", ,"ContractData",C160, "PerCentNetLastTrade",, "T")/100,"") ->  | E160: =IFERROR(RANK($D160,$D$1:D$447)+COUNTIF($D$1:D160,D160)-1,0) -> 0 | F160: 0 | G160: S.US.FICO | H160: 160
B161: 1 | C161: S.US.FIX | D161: =IFERROR(RTD("cqg.rtd", ,"ContractData",C161, "PerCentNetLastTrade",, "T")/100,"") ->  | E161: =IFERROR(RANK($D161,$D$1:D$447)+COUNTIF($D$1:D161,D161)-1,0) -> 0 | F161: 0 | G161: S.US.FIX | H161: 161
B162: 1 | C162: S.US.FLS | D162: =IFERROR(RTD("cqg.rtd", ,"ContractData",C162, "PerCentNetLastTrade",, "T")/100,"") ->  | E162: =IFERROR(RANK($D162,$D$1:D$447)+COUNTIF($D$1:D162,D162)-1,0) -> 0 | F162: 0 | G162: S.US.FLS | H162: 162
B163: 1 | C163: S.US.FN | D163: =IFERROR(RTD("cqg.rtd", ,"ContractData",C163, "PerCentNetLastTrade",, "T")/100,"") ->  | E163: =IFERROR(RANK($D163,$D$1:D$447)+COUNTIF($D$1:D163,D163)-1,0) -> 0 | F163: 0 | G163: S.US.FN | H163: 163
B164: 1 | C164: S.US.FND | D164: =IFERROR(RTD("cqg.rtd", ,"ContractData",C164, "PerCentNetLastTrade",, "T")/100,"") ->  | E164: =IFERROR(RANK($D164,$D$1:D$447)+COUNTIF($D$1:D164,D164)-1,0) -> 0 | F164: 0 | G164: S.US.FND | H164: 164
B165: 1 | C165: S.US.FOUR | D165: =IFERROR(RTD("cqg.rtd", ,"ContractData",C165, "PerCentNetLastTrade",, "T")/100,"") ->  | E165: =IFERROR(RANK($D165,$D$1:D$447)+COUNTIF($D$1:D165,D165)-1,0) -> 0 | F165: 0 | G165: S.US.FOUR | H165: 165
B166: 1 | C166: S.US.FR | D166: =IFERROR(RTD("cqg.rtd", ,"ContractData",C166, "PerCentNetLastTrade",, "T")/100,"") ->  | E166: =IFERROR(RANK($D166,$D$1:D$447)+COUNTIF($D$1:D166,D166)-1,0) -> 0 | F166: 0 | G166: S.US.FR | H166: 166
B167: 1 | C167: S.US.FSLR | D167: =IFERROR(RTD("cqg.rtd", ,"ContractData",C167, "PerCentNetLastTrade",, "T")/100,"") ->  | E167: =IFERROR(RANK($D167,$D$1:D$447)+COUNTIF($D$1:D167,D167)-1,0) -> 0 | F167: 0 | G167: S.US.FSLR | H167: 167
B168: 1 | C168: S.US.FTNT | D168: =IFERROR(RTD("cqg.rtd", ,"ContractData",C168, "PerCentNetLastTrade",, "T")/100,"") ->  | E168: =IFERROR(RANK($D168,$D$1:D$447)+COUNTIF($D$1:D168,D168)-1,0) -> 0 | F168: 0 | G168: S.US.FTNT | H168: 168
B169: 1 | C169: S.US.G | D169: =IFERROR(RTD("cqg.rtd", ,"ContractData",C169, "PerCentNetLastTrade",, "T")/100,"") ->  | E169: =IFERROR(RANK($D169,$D$1:D$447)+COUNTIF($D$1:D169,D169)-1,0) -> 0 | F169: 0 | G169: S.US.G | H169: 169
B170: 1 | C170: S.US.GATX | D170: =IFERROR(RTD("cqg.rtd", ,"ContractData",C170, "PerCentNetLastTrade",, "T")/100,"") ->  | E170: =IFERROR(RANK($D170,$D$1:D$447)+COUNTIF($D$1:D170,D170)-1,0) -> 0 | F170: 0 | G170: S.US.GATX | H170: 170
B171: 1 | C171: S.US.GBCI | D171: =IFERROR(RTD("cqg.rtd", ,"ContractData",C171, "PerCentNetLastTrade",, "T")/100,"") ->  | E171: =IFERROR(RANK($D171,$D$1:D$447)+COUNTIF($D$1:D171,D171)-1,0) -> 0 | F171: 0 | G171: S.US.GBCI | H171: 171
B172: 1 | C172: S.US.GDDY | D172: =IFERROR(RTD("cqg.rtd", ,"ContractData",C172, "PerCentNetLastTrade",, "T")/100,"") ->  | E172: =IFERROR(RANK($D172,$D$1:D$447)+COUNTIF($D$1:D172,D172)-1,0) -> 0 | F172: 0 | G172: S.US.GDDY | H172: 172
B173: 1 | C173: S.US.GE | D173: =IFERROR(RTD("cqg.rtd", ,"ContractData",C173, "PerCentNetLastTrade",, "T")/100,"") ->  | E173: =IFERROR(RANK($D173,$D$1:D$447)+COUNTIF($D$1:D173,D173)-1,0) -> 0 | F173: 0 | G173: S.US.GE | H173: 173
B174: 1 | C174: S.US.GEN | D174: =IFERROR(RTD("cqg.rtd", ,"ContractData",C174, "PerCentNetLastTrade",, "T")/100,"") ->  | E174: =IFERROR(RANK($D174,$D$1:D$447)+COUNTIF($D$1:D174,D174)-1,0) -> 0 | F174: 0 | G174: S.US.GEN | H174: 174
B175: 1 | C175: S.US.GEV | D175: =IFERROR(RTD("cqg.rtd", ,"ContractData",C175, "PerCentNetLastTrade",, "T")/100,"") ->  | E175: =IFERROR(RANK($D175,$D$1:D$447)+COUNTIF($D$1:D175,D175)-1,0) -> 0 | F175: 0 | G175: S.US.GEV | H175: 175
B176: 1 | C176: S.US.GGG | D176: =IFERROR(RTD("cqg.rtd", ,"ContractData",C176, "PerCentNetLastTrade",, "T")/100,"") ->  | E176: =IFERROR(RANK($D176,$D$1:D$447)+COUNTIF($D$1:D176,D176)-1,0) -> 0 | F176: 0 | G176: S.US.GGG | H176: 176
B177: 1 | C177: S.US.GLPI | D177: =IFERROR(RTD("cqg.rtd", ,"ContractData",C177, "PerCentNetLastTrade",, "T")/100,"") ->  | E177: =IFERROR(RANK($D177,$D$1:D$447)+COUNTIF($D$1:D177,D177)-1,0) -> 0 | F177: 0 | G177: S.US.GLPI | H177: 177
B178: 1 | C178: S.US.GME | D178: =IFERROR(RTD("cqg.rtd", ,"ContractData",C178, "PerCentNetLastTrade",, "T")/100,"") ->  | E178: =IFERROR(RANK($D178,$D$1:D$447)+COUNTIF($D$1:D178,D178)-1,0) -> 0 | F178: 0 | G178: S.US.GME | H178: 178
B179: 1 | C179: S.US.GMED | D179: =IFERROR(RTD("cqg.rtd", ,"ContractData",C179, "PerCentNetLastTrade",, "T")/100,"") ->  | E179: =IFERROR(RANK($D179,$D$1:D$447)+COUNTIF($D$1:D179,D179)-1,0) -> 0 | F179: 0 | G179: S.US.GMED | H179: 179
B180: 1 | C180: S.US.GNRC | D180: =IFERROR(RTD("cqg.rtd", ,"ContractData",C180, "PerCentNetLastTrade",, "T")/100,"") ->  | E180: =IFERROR(RANK($D180,$D$1:D$447)+COUNTIF($D$1:D180,D180)-1,0) -> 0 | F180: 0 | G180: S.US.GNRC | H180: 180
B181: 1 | C181: S.US.GNTX | D181: =IFERROR(RTD("cqg.rtd", ,"ContractData",C181, "PerCentNetLastTrade",, "T")/100,"") ->  | E181: =IFERROR(RANK($D181,$D$1:D$447)+COUNTIF($D$1:D181,D181)-1,0) -> 0 | F181: 0 | G181: S.US.GNTX | H181: 181
B182: 1 | C182: S.US.GOOG | D182: =IFERROR(RTD("cqg.rtd", ,"ContractData",C182, "PerCentNetLastTrade",, "T")/100,"") ->  | E182: =IFERROR(RANK($D182,$D$1:D$447)+COUNTIF($D$1:D182,D182)-1,0) -> 0 | F182: 0 | G182: S.US.GOOG | H182: 182
B183: 1 | C183: S.US.GOOGL | D183: =IFERROR(RTD("cqg.rtd", ,"ContractData",C183, "PerCentNetLastTrade",, "T")/100,"") ->  | E183: =IFERROR(RANK($D183,$D$1:D$447)+COUNTIF($D$1:D183,D183)-1,0) -> 0 | F183: 0 | G183: S.US.GOOGL | H183: 183
B184: 1 | C184: S.US.GPK | D184: =IFERROR(RTD("cqg.rtd", ,"ContractData",C184, "PerCentNetLastTrade",, "T")/100,"") ->  | E184: =IFERROR(RANK($D184,$D$1:D$447)+COUNTIF($D$1:D184,D184)-1,0) -> 0 | F184: 0 | G184: S.US.GPK | H184: 184
B185: 1 | C185: S.US.GRMN | D185: =IFERROR(RTD("cqg.rtd", ,"ContractData",C185, "PerCentNetLastTrade",, "T")/100,"") ->  | E185: =IFERROR(RANK($D185,$D$1:D$447)+COUNTIF($D$1:D185,D185)-1,0) -> 0 | F185: 0 | G185: S.US.GRMN | H185: 185
B186: 1 | C186: S.US.GTLS | D186: =IFERROR(RTD("cqg.rtd", ,"ContractData",C186, "PerCentNetLastTrade",, "T")/100,"") ->  | E186: =IFERROR(RANK($D186,$D$1:D$447)+COUNTIF($D$1:D186,D186)-1,0) -> 0 | F186: 0 | G186: S.US.GTLS | H186: 186
B187: 1 | C187: S.US.GWRE | D187: =IFERROR(RTD("cqg.rtd", ,"ContractData",C187, "PerCentNetLastTrade",, "T")/100,"") ->  | E187: =IFERROR(RANK($D187,$D$1:D$447)+COUNTIF($D$1:D187,D187)-1,0) -> 0 | F187: 0 | G187: S.US.GWRE | H187: 187
B188: 1 | C188: S.US.GWW | D188: =IFERROR(RTD("cqg.rtd", ,"ContractData",C188, "PerCentNetLastTrade",, "T")/100,"") ->  | E188: =IFERROR(RANK($D188,$D$1:D$447)+COUNTIF($D$1:D188,D188)-1,0) -> 0 | F188: 0 | G188: S.US.GWW | H188: 188
B189: 1 | C189: S.US.H | D189: =IFERROR(RTD("cqg.rtd", ,"ContractData",C189, "PerCentNetLastTrade",, "T")/100,"") ->  | E189: =IFERROR(RANK($D189,$D$1:D$447)+COUNTIF($D$1:D189,D189)-1,0) -> 0 | F189: 0 | G189: S.US.H | H189: 189
B190: 1 | C190: S.US.HAE | D190: =IFERROR(RTD("cqg.rtd", ,"ContractData",C190, "PerCentNetLastTrade",, "T")/100,"") ->  | E190: =IFERROR(RANK($D190,$D$1:D$447)+COUNTIF($D$1:D190,D190)-1,0) -> 0 | F190: 0 | G190: S.US.HAE | H190: 190
B191: 1 | C191: S.US.HALO | D191: =IFERROR(RTD("cqg.rtd", ,"ContractData",C191, "PerCentNetLastTrade",, "T")/100,"") ->  | E191: =IFERROR(RANK($D191,$D$1:D$447)+COUNTIF($D$1:D191,D191)-1,0) -> 0 | F191: 0 | G191: S.US.HALO | H191: 191
B192: 1 | C192: S.US.HCA | D192: =IFERROR(RTD("cqg.rtd", ,"ContractData",C192, "PerCentNetLastTrade",, "T")/100,"") ->  | E192: =IFERROR(RANK($D192,$D$1:D$447)+COUNTIF($D$1:D192,D192)-1,0) -> 0 | F192: 0 | G192: S.US.HCA | H192: 192
B193: 1 | C193: S.US.HD | D193: =IFERROR(RTD("cqg.rtd", ,"ContractData",C193, "PerCentNetLastTrade",, "T")/100,"") ->  | E193: =IFERROR(RANK($D193,$D$1:D$447)+COUNTIF($D$1:D193,D193)-1,0) -> 0 | F193: 0 | G193: S.US.HD | H193: 193
B194: =IF(D194>=0,1,) -> 1 | C194: S.US.HES | D194: =IFERROR(RTD("cqg.rtd", ,"ContractData",C194, "PerCentNetLastTrade",, "T")/100,"") ->  | E194: =IFERROR(RANK($D194,$D$1:D$447)+COUNTIF($D$1:D194,D194)-1,0) -> 0 | F194: =IFERROR(E194,"") -> 0 | G194: =C194 -> S.US.HES | H194: 194 | I194: =IFERROR(VLOOKUP(H194,$F$1:$G$447,2,FALSE),"") -> 
B195: 1 | C195: S.US.HGV | D195: =IFERROR(RTD("cqg.rtd", ,"ContractData",C195, "PerCentNetLastTrade",, "T")/100,"") ->  | E195: =IFERROR(RANK($D195,$D$1:D$447)+COUNTIF($D$1:D195,D195)-1,0) -> 0 | F195: 0 | G195: S.US.HGV | H195: =H194+1 -> 195
B196: 1 | C196: S.US.HIG | D196: =IFERROR(RTD("cqg.rtd", ,"ContractData",C196, "PerCentNetLastTrade",, "T")/100,"") ->  | E196: =IFERROR(RANK($D196,$D$1:D$447)+COUNTIF($D$1:D196,D196)-1,0) -> 0 | F196: 0 | G196: S.US.HIG | H196: 196
B197: 1 | C197: S.US.HLI | D197: =IFERROR(RTD("cqg.rtd", ,"ContractData",C197, "PerCentNetLastTrade",, "T")/100,"") ->  | E197: =IFERROR(RANK($D197,$D$1:D$447)+COUNTIF($D$1:D197,D197)-1,0) -> 0 | F197: 0 | G197: S.US.HLI | H197: 197
B198: 1 | C198: S.US.HLNE | D198: =IFERROR(RTD("cqg.rtd", ,"ContractData",C198, "PerCentNetLastTrade",, "T")/100,"") ->  | E198: =IFERROR(RANK($D198,$D$1:D$447)+COUNTIF($D$1:D198,D198)-1,0) -> 0 | F198: 0 | G198: S.US.HLNE | H198: 198
B199: 1 | C199: S.US.HLT | D199: =IFERROR(RTD("cqg.rtd", ,"ContractData",C199, "PerCentNetLastTrade",, "T")/100,"") ->  | E199: =IFERROR(RANK($D199,$D$1:D$447)+COUNTIF($D$1:D199,D199)-1,0) -> 0 | F199: 0 | G199: S.US.HLT | H199: 199
B200: 1 | C200: S.US.HOMB | D200: =IFERROR(RTD("cqg.rtd", ,"ContractData",C200, "PerCentNetLastTrade",, "T")/100,"") ->  | E200: =IFERROR(RANK($D200,$D$1:D$447)+COUNTIF($D$1:D200,D200)-1,0) -> 0 | F200: 0 | G200: S.US.HOMB | H200: 200
... 273 more rows
